Workbook

Sheet RESUMEN
B6: DATOS DE CABECERA PACC
B7: MONTO ESTIMADO TOTAL | C7: =PACC!B10 -> 22180160.8
B8: CANTIDAD DE PROCESOS REGISTRADOS | C8: =PACC!B9 -> 34
B9: CAPÍTULO | C9: =IF(PACC!E6="","",PACC!E6) -> 5143
B10: SUB CAPÍTULO | C10: =IF(PACC!E7="","",PACC!E7) -> 01
B11: UNIDAD EJECUTORA | C11: =IF(PACC!E8="","",PACC!E8) -> 0001
B12: UNIDAD DE COMPRA | C12: =IF(PACC!E9="","",PACC!E9) -> Instituto de Desarrollo y Crédito Cooperativo
B13: AÑO FISCAL | C13: =IF(PACC!E11="","",PACC!E11) -> 2023
B14: FECHA APROBACIÓN | C14: =IF(PACC!E12="","",PACC!E12) -> 
B15: MONTOS ESTIMADOS SEGÚN OBJETO DE CONTRATACIÓN
B16: BIENES | C16: =SUMIF(ObjetoContratacionOculto,"="&Bienes,TotalEstColumnValue) -> 16227940.8
B17: OBRAS | C17: =SUMIF(ObjetoContratacionOculto,"="&Obras,TotalEstColumnValue) -> 0
B18: SERVICIOS | C18: =SUMIF(ObjetoContratacionOculto,"="&Servicios,TotalEstColumnValue) -> 5952220
B19: SERVICIOS: CONSULTORÍA | C19: =SUMIF(ObjetoContratacionOculto,"="&ServiciosConsultoria,TotalEstColumnValue) -> 0
B20: SERVICIOS: CONSULTORÍA BASADA EN LA CALIDAD DE LOS SERVICIOS | C20: =SUMIF(ObjetoContratacionOculto,"="&ConsultoriaServicios,TotalEstColumnValue) -> 0
B21: MONTOS ESTIMADOS SEGÚN CLASIFICACIÓN MIPYME
B22: MIPYME | C22: =SUMIF(MIPYMEOculto,"="&MIPYMESí,TotalEstColumnValue) -> 2743550.6
B23: MIPYME MUJER | C23: =SUMIF(MIPYMEOculto,"="&MIPYMEMujer,TotalEstColumnValue) -> 465500
B24: NO MIPYME | C24: =SUMIF(MIPYMEOculto,"="&MIPYMENo,TotalEstColumnValue) -> 18971110.2
B25: MONTOS ESTIMADOS SEGÚN TIPO DE PROCEDIMIENTO
B26: COMPRAS POR DEBAJO DEL UMBRAL | C26: =SUMIF(ProcedimientoOculto,"="&ModCU,TotalEstColumnValue) -> 3108470
B27: COMPRA MENOR | C27: =SUMIF(ProcedimientoOculto,"="&ModCM,TotalEstColumnValue) -> 15227940.8
B28: COMPARACIÓN DE PRECIOS | C28: =SUMIF(ProcedimientoOculto,"="&ModCP,TotalEstColumnValue) -> 2843750
B29: LICITACIÓN PÚBLICA | C29: =SUMIF(ProcedimientoOculto,"="&ModLP,TotalEstColumnValue) -> 1000000
B30: LICITACIÓN PÚBLICA INTERNACIONAL | C30: =SUMIF(ProcedimientoOculto,"="&ModLI,TotalEstColumnValue) -> 0
B31: LICITACIÓN RESTRINGIDA | C31: =SUMIF(ProcedimientoOculto,"="&ModLR,TotalEstColumnValue) -> 0
B32: SORTEO DE OBRAS | C32: =SUMIF(ProcedimientoOculto,"="&ModSO,TotalEstColumnValue) -> 0
B33: EXCEPCIÓN - BIENES O SERVICIOS CON EXCLUSIVIDAD | C33: =SUMIF(ProcedimientoOculto,"="&ModEBienes,TotalEstColumnValue) -> 0
B34: EXCEPCIÓN - CONSTRUCCIÓN, INSTALACIÓN O ADQUISICIÓN DE OFICINAS PARA EL SERVICIO EXTERIOR | C34: =SUMIF(ProcedimientoOculto,"="&ModEConstruccion,TotalEstColumnValue) -> 0
B35: EXCEPCIÓN - CONTRATACIÓN DE PUBLICIDAD A TRAVÉS DE MEDIOS DE COMUNICACIÓN SOCIAL | C35: =SUMIF(ProcedimientoOculto,"="&ModEPublicidad,TotalEstColumnValue) -> 0
B36: EXCEPCIÓN - OBRAS CIENTÍFICAS, TÉCNICAS, ARTÍSTICAS, O RESTAURACIÓN DE MONUMENTOS HISTÓRICOS | C36: =SUMIF(ProcedimientoOculto,"="&ModEObras,TotalEstColumnValue) -> 0
B37: EXCEPCIÓN - PROVEEDOR ÚNICO | C37: =SUMIF(ProcedimientoOculto,"="&ModEProveedor,TotalEstColumnValue) -> 0
B38: EXCEPCIÓN - RESCISIÓN DE CONTRATOS CUYA TERMINACIÓN NO EXCEDA EL 40% DEL MONTO TOTAL DEL PROYECTO, OBRA O SERVICIO | C38: =SUMIF(ProcedimientoOculto,"="&ModE40,TotalEstColumnValue) -> 0
B39: EXCEPCIÓN - RESOLUCIÓN 15-08 SOBRE COMPRA Y CONTRATACIÓN DE PASAJE AÉREO, COMBUSTIBLE Y REPARACIÓN DE VEHÍCULOS DE MOTOR | C39: =SUMIF(ProcedimientoOculto,"="&ModE1508,TotalEstColumnValue) -> 0

Sheet PACC
B2: PLAN ANUAL DE COMPRAS Y CONTRATACIONES
B3: ="AÑO "&E11 -> AÑO 2023
A6: SNCC.F.069 | D6: Capítulo | E6: 5143
A7: Version: 1.0.0 | D7: Sub Capítulo | E7: 01
D8: Unidad Ejecutora | E8: 0001
A9: Cantidad Procesos Registrados | B9: =COUNTIFS(TotalEstColumnName,"="&TotalEstLabel,TotalEstColumnValue,">0") -> 34 | D9: Unidad de Compra | E9: Instituto de Desarrollo y Crédito Cooperativo
A10: Monto Estimado Total | B10: =SUMIF(TotalEstColumnName,"="&TotalEstLabel,TotalEstColumnValue) -> 22180160.8 | D10: Código de la Unidad de Compra | E10: 000839
D11: Año Fiscal | E11: 2023
D12: Fecha Aprobación
A15: NOMBRE O REFERENCIA DE CONTRATACIÓN | B15: FINALIDAD DE LA CONTRATACIÓN | C15: OBJETO DE CONTRATACIÓN | D15: PROCEDIMIENTO DE SELECCIÓN | E15: DESTINADO A MIPYMES | F15: CÓDIGO SNIP
A16: Materiales de oficina | B16: Adquisicion | C16: Bienes | D16: Compras Menores | E16: Sí
A17: FECHA DE NECESSIDAD | B17: FECHA INICIO PROCESO DE COMPRA | C17: 2023-05-09 | D17: LUGAR DE EJECUCIÓN / ENTREGA | E17: Región
B18: TRIMESTRE | C18: =IF(C17="","",IF(AND(MONTH(C17)>=1,MONTH(C17)<=3),1,IF(AND(MONTH(C17)>=4,MONTH(C17)<=6),2,IF(AND(MONTH(C17)>=7,MONTH(C17)<=9),3,4)))) -> 2 | E18: Provincia
B19: FECHA PREVISTA ADJUDICACIÓN | C19: 2023-05-09 | E19: Municipio
B20: TRIMESTRE | C20: =IF(C19="","",IF(AND(MONTH(C19)>=1,MONTH(C19)<=3),1,IF(AND(MONTH(C19)>=4,MONTH(C19)<=6),2,IF(AND(MONTH(C19)>=7,MONTH(C19)<=9),3,4)))) -> 2 | E20: Distrito Municipal
A22: CÓDIGO CATÁLOGO | B22: ARTÍCULO | C22: UNIDAD DE MEDIDA | D22: CANTIDAD TOTAL ESTIMADA | E22: PRECIO UNITARIO ESTIMADO | F22: MONTO TOTAL ESTIMADO
A23: 44121701 | B23: =IFERROR(INDEX(UNSPSCDes,MATCH(INDIRECT(ADDRESS(ROW(),COLUMN()-1,4)),UNSPSCCode,0)),IF(INDIRECT(ADDRESS(ROW(),COLUMN()-1,4))="44121701","Bolígrafos","")) -> Bolígrafos | C23: =IFERROR(VLOOKUP("CAJ",'Informacion '!P:Q,2,FALSE),"") -> Caja | D23: 25 | E23: 240 | F23: =INDIRECT(ADDRESS(ROW(),COLUMN()-2,4))*INDIRECT(ADDRESS(ROW(),COLUMN()-1,4)) -> 6000
A24: 44121706 | B24: =IFERROR(INDEX(UNSPSCDes,MATCH(INDIRECT(ADDRESS(ROW(),COLUMN()-1,4)),UNSPSCCode,0)),IF(INDIRECT(ADDRESS(ROW(),COLUMN()-1,4))="44121706","Lápices de madera","")) -> Lápices de madera | C24: =IFERROR(VLOOKUP("CAJ",'Informacion '!P:Q,2,FALSE),"") -> Caja | D24: 25 | E24: 190 | F24: 4750
A25: 44121615 | B25: =IFERROR(INDEX(UNSPSCDes,MATCH(INDIRECT(ADDRESS(ROW(),COLUMN()-1,4)),UNSPSCCode,0)),IF(INDIRECT(ADDRESS(ROW(),COLUMN()-1,4))="44121615","Grapadoras","")) -> Grapadoras | C25: =IFERROR(VLOOKUP("UD",'Informacion '!P:Q,2,FALSE),"") -> Unidad | D25: 30 | E25: 240 | F25: 7200
A26: 44121618 | B26: =IFERROR(INDEX(UNSPSCDes,MATCH(INDIRECT(ADDRESS(ROW(),COLUMN()-1,4)),UNSPSCCode,0)),IF(INDIRECT(ADDRESS(ROW(),COLUMN()-1,4))="44121618","Tijeras","")) -> Tijeras | C26: =IFERROR(VLOOKUP("UD",'Informacion '!P:Q,2,FALSE),"") -> Unidad | D26: 25 | E26: 300 | F26: 7500
A27: 44111808 | B27: =IFERROR(INDEX(UNSPSCDes,MATCH(INDIRECT(ADDRESS(ROW(),COLUMN()-1,4)),UNSPSCCode,0)),IF(INDIRECT(ADDRESS(ROW(),COLUMN()-1,4))="44111808","Reglas t","")) -> Reglas t | C27: =IFERROR(VLOOKUP("UD",'Informacion '!P:Q,2,FALSE),"") -> Unidad | D27: 50 | E27: 250 | F27: 12500
A28: 44111611 | B28: =IFERROR(INDEX(UNSPSCDes,MATCH(INDIRECT(ADDRESS(ROW(),COLUMN()-1,4)),UNSPSCCode,0)),IF(INDIRECT(ADDRESS(ROW(),COLUMN()-1,4))="44111611","Clips para billetes","")) -> Clips para billetes | C28: =IFERROR(VLOOKUP("CAJ",'Informacion '!P:Q,2,FALSE),"") -> Caja | D28: 50 | E28: 500 | F28: 25000
A29: 44103507 | B29: =IFERROR(INDEX(UNSPSCDes,MATCH(INDIRECT(ADDRESS(ROW(),COLUMN()-1,4)),UNSPSCCode,0)),IF(INDIRECT(ADDRESS(ROW(),COLUMN()-1,4))="44103507","Kits de encuadernación","")) -> Kits de encuadernación | C29: =IFERROR(VLOOKUP("CAJ",'Informacion '!P:Q,2,FALSE),"") -> Caja | D29: 25 | E29: 400 | F29: 10000
A30: 60121535 | B30: =IFERROR(INDEX(UNSPSCDes,MATCH(INDIRECT(ADDRESS(ROW(),COLUMN()-1,4)),UNSPSCCode,0)),IF(INDIRECT(ADDRESS(ROW(),COLUMN()-1,4))="60121535","Borradores de goma","")) -> Borradores de goma | C30: =IFERROR(VLOOKUP("UD",'Informacion '!P:Q,2,FALSE),"") -> Unidad | D30: 20 | E30: 50 | F30: 1000
A31: 14111526 | B31: =IFERROR(INDEX(UNSPSCDes,MATCH(INDIRECT(ADDRESS(ROW(),COLUMN()-1,4)),UNSPSCCode,0)),IF(INDIRECT(ADDRESS(ROW(),COLUMN()-1,4))="14111526","Papel libretas o libros de mensajes telefónicos","")) -> Papel libretas o libros de mensajes telefónicos | C31: =IFERROR(VLOOKUP("UD",'Informacion '!P:Q,2,FALSE),"") -> Unidad | D31: 50 | E31: 150 | F31: 7500
A32: 14111526 | B32: =IFERROR(INDEX(UNSPSCDes,MATCH(INDIRECT(ADDRESS(ROW(),COLUMN()-1,4)),UNSPSCCode,0)),IF(INDIRECT(ADDRESS(ROW(),COLUMN()-1,4))="14111526","Papel libretas o libros de mensajes telefónicos","")) -> Papel libretas o libros de mensajes telefónicos | C32: =IFERROR(VLOOKUP("UD",'Informacion '!P:Q,2,FALSE),"") -> Unidad | D32: 50 | E32: 200 | F32: 10000
A33: 43232503 | B33: =IFERROR(INDEX(UNSPSCDes,MATCH(INDIRECT(ADDRESS(ROW(),COLUMN()-1,4)),UNSPSCCode,0)),IF(INDIRECT(ADDRESS(ROW(),COLUMN()-1,4))="43232503","Correctores de ortografía","")) -> Correctores de ortografía | C33: =IFERROR(VLOOKUP("UD",'Informacion '!P:Q,2,FALSE),"") -> Unidad | D33: 50 | E33: 100 | F33: 5000
A34: 43232503 | B34: =IFERROR(INDEX(UNSPSCDes,MATCH(INDIRECT(ADDRESS(ROW(),COLUMN()-1,4)),UNSPSCCode,0)),IF(INDIRECT(ADDRESS(ROW(),COLUMN()-1,4))="43232503","Correctores de ortografía","")) -> Correctores de ortografía | C34: =IFERROR(VLOOKUP("UD",'Informacion '!P:Q,2,FALSE),"") -> Unidad | D34: 50 | E34: 30 | F34: 1500
A35: 44121613 | B35: =IFERROR(INDEX(UNSPSCDes,MATCH(INDIRECT(ADDRESS(ROW(),COLUMN()-1,4)),UNSPSCCode,0)),IF(INDIRECT(ADDRESS(ROW(),COLUMN()-1,4))="44121613","Removedores de grapas (saca ganchos)","")) -> Removedores de grapas (saca ganchos) | C35: =IFERROR(VLOOKUP("UD",'Informacion '!P:Q,2,FALSE),"") -> Unidad | D35: 100 | E35: 21 | F35: 2100
A36: 45101508 | B36: =IFERROR(INDEX(UNSPSCDes,MATCH(INDIRECT(ADDRESS(ROW(),COLUMN()-1,4)),UNSPSCCode,0)),IF(INDIRECT(ADDRESS(ROW(),COLUMN()-1,4))="45101508","Máquinas perforadoras","")) -> Máquinas perforadoras | C36: =IFERROR(VLOOKUP("UD",'Informacion '!P:Q,2,FALSE),"") -> Unidad | D36: 50 | E36: 250 | F36: 12500
A37: 31201610 | B37: =IFERROR(INDEX(UNSPSCDes,MATCH(INDIRECT(ADDRESS(ROW(),COLUMN()-1,4)),UNSPSCCode,0)),IF(INDIRECT(ADDRESS(ROW(),COLUMN()-1,4))="31201610","Pegamentos","")) -> Pegamentos | C37: =IFERROR(VLOOKUP("UD",'Informacion '!P:Q,2,FALSE),"") -> Unidad | D37: 50 | E37: 75 | F37: 3750
A38: 26111705 | B38: =IFERROR(INDEX(UNSPSCDes,MATCH(INDIRECT(ADDRESS(ROW(),COLUMN()-1,4)),UNSPSCCode,0)),IF(INDIRECT(ADDRESS(ROW(),COLUMN()-1,4))="26111705","Pilas secas","")) -> Pilas secas | C38: =IFERROR(VLOOKUP("UD",'Informacion '!P:Q,2,FALSE),"") -> Unidad | D38: 50 | E38: 30 | F38: 1500
A39: 26111705 | B39: =IFERROR(INDEX(UNSPSCDes,MATCH(INDIRECT(ADDRESS(ROW(),COLUMN()-1,4)),UNSPSCCode,0)),IF(INDIRECT(ADDRESS(ROW(),COLUMN()-1,4))="26111705","Pilas secas","")) -> Pilas secas | C39: =IFERROR(VLOOKUP("UD",'Informacion '!P:Q,2,FALSE),"") -> Unidad | D39: 50 | E39: 45 | F39: 2250
A40: 44121506 | B40: =IFERROR(INDEX(UNSPSCDes,MATCH(INDIRECT(ADDRESS(ROW(),COLUMN()-1,4)),UNSPSCCode,0)),IF(INDIRECT(ADDRESS(ROW(),COLUMN()-1,4))="44121506","Sobres estándar","")) -> Sobres estándar | C40: =IFERROR(VLOOKUP("CAJ",'Informacion '!P:Q,2,FALSE),"") -> Caja | D40: 1 | E40: 1480 | F40: 1480
A41: 44121506 | B41: =IFERROR(INDEX(UNSPSCDes,MATCH(INDIRECT(ADDRESS(ROW(),COLUMN()-1,4)),UNSPSCCode,0)),IF(INDIRECT(ADDRESS(ROW(),COLUMN()-1,4))="44121506","Sobres estándar","")) -> Sobres estándar | C41: =IFERROR(VLOOKUP("CAJ",'Informacion '!P:Q,2,FALSE),"") -> Caja | D41: 1 | E41: 1650 | F41: 1650
A42: 44121506 | B42: =IFERROR(INDEX(UNSPSCDes,MATCH(INDIRECT(ADDRESS(ROW(),COLUMN()-1,4)),UNSPSCCode,0)),IF(INDIRECT(ADDRESS(ROW(),COLUMN()-1,4))="44121506","Sobres estándar","")) -> Sobres estándar | C42: =IFERROR(VLOOKUP("CAJ",'Informacion '!P:Q,2,FALSE),"") -> Caja | D42: 1 | E42: 1750 | F42: 1750
A43: 44121506 | B43: =IFERROR(INDEX(UNSPSCDes,MATCH(INDIRECT(ADDRESS(ROW(),COLUMN()-1,4)),UNSPSCCode,0)),IF(INDIRECT(ADDRESS(ROW(),COLUMN()-1,4))="44121506","Sobres estándar","")) -> Sobres estándar | C43: =IFERROR(VLOOKUP("CAJ",'Informacion '!P:Q,2,FALSE),"") -> Caja | D43: 1 | E43: 1750 | F43: 1750
A44: 14111507 | B44: =IFERROR(INDEX(UNSPSCDes,MATCH(INDIRECT(ADDRESS(ROW(),COLUMN()-1,4)),UNSPSCCode,0)),IF(INDIRECT(ADDRESS(ROW(),COLUMN()-1,4))="14111507","Papel para impresora o fotocopiadora","")) -> Papel para impresora o fotocopiadora | C44: =IFERROR(VLOOKUP("UD",'Informacion '!P:Q,2,FALSE),"") -> Unidad | D44: 300 | E44: 500 | F44: 150000
A45: 14111507 | B45: =IFERROR(INDEX(UNSPSCDes,MATCH(INDIRECT(ADDRESS(ROW(),COLUMN()-1,4)),UNSPSCCode,0)),IF(INDIRECT(ADDRESS(ROW(),COLUMN()-1,4))="14111507","Papel para impresora o fotocopiadora","")) -> Papel para impresora o fotocopiadora | C45: =IFERROR(VLOOKUP("UD",'Informacion '!P:Q,2,FALSE),"") -> Unidad | D45: 300 | E45: 500 | F45: 150000
A46: 44122011 | B46: =IFERROR(INDEX(UNSPSCDes,MATCH(INDIRECT(ADDRESS(ROW(),COLUMN()-1,4)),UNSPSCCode,0)),IF(INDIRECT(ADDRESS(ROW(),COLUMN()-1,4))="44122011","Folders","")) -> Folders | C46: =IFERROR(VLOOKUP("CAJ",'Informacion '!P:Q,2,FALSE),"") -> Caja | D46: 5 | E46: 1800 | F46: 9000
A47: 44122011 | B47: =IFERROR(INDEX(UNSPSCDes,MATCH(INDIRECT(ADDRESS(ROW(),COLUMN()-1,4)),UNSPSCCode,0)),IF(INDIRECT(ADDRESS(ROW(),COLUMN()-1,4))="44122011","Folders","")) -> Folders | C47: =IFERROR(VLOOKUP("CAJ",'Informacion '!P:Q,2,FALSE),"") -> Caja | D47: 5 | E47: 2000 | F47: 10000
A48: 44122107 | B48: =IFERROR(INDEX(UNSPSCDes,MATCH(INDIRECT(ADDRESS(ROW(),COLUMN()-1,4)),UNSPSCCode,0)),IF(INDIRECT(ADDRESS(ROW(),COLUMN()-1,4))="44122107","Grapas","")) -> Grapas | C48: =IFERROR(VLOOKUP("CAJ",'Informacion '!P:Q,2,FALSE),"") -> Caja | D48: 25 | E48: 200 | F48: 5000
A49: 44122104 | B49: =IFERROR(INDEX(UNSPSCDes,MATCH(INDIRECT(ADDRESS(ROW(),COLUMN()-1,4)),UNSPSCCode,0)),IF(INDIRECT(ADDRESS(ROW(),COLUMN()-1,4))="44122104","Clips para papel","")) -> Clips para papel | C49: =IFERROR(VLOOKUP("CAJ",'Informacion '!P:Q,2,FALSE),"") -> Caja | D49: 50 | E49: 200 | F49: 10000
A50: 44122104 | B50: =IFERROR(INDEX(UNSPSCDes,MATCH(INDIRECT(ADDRESS(ROW(),COLUMN()-1,4)),UNSPSCCode,0)),IF(INDIRECT(ADDRESS(ROW(),COLUMN()-1,4))="44122104","Clips para papel","")) -> Clips para papel | C50: =IFERROR(VLOOKUP("CAJ",'Informacion '!P:Q,2,FALSE),"") -> Caja | D50: 50 | E50: 200 | F50: 10000
A51: 44122104 | B51: =IFERROR(INDEX(UNSPSCDes,MATCH(INDIRECT(ADDRESS(ROW(),COLUMN()-1,4)),UNSPSCCode,0)),IF(INDIRECT(ADDRESS(ROW(),COLUMN()-1,4))="44122104","Clips para papel","")) -> Clips para papel | C51: =IFERROR(VLOOKUP("CAJ",'Informacion '!P:Q,2,FALSE),"") -> Caja | D51: 50 | E51: 200 | F51: 10000
A52: 44122107 | B52: =IFERROR(INDEX(UNSPSCDes,MATCH(INDIRECT(ADDRESS(ROW(),COLUMN()-1,4)),UNSPSCCode,0)),IF(INDIRECT(ADDRESS(ROW(),COLUMN()-1,4))="44122107","Grapas","")) -> Grapas | C52: =IFERROR(VLOOKUP("CAJ",'Informacion '!P:Q,2,FALSE),"") -> Caja | D52: 25 | E52: 300 | F52: 7500
A53: 44121701 | B53: =IFERROR(INDEX(UNSPSCDes,MATCH(INDIRECT(ADDRESS(ROW(),COLUMN()-1,4)),UNSPSCCode,0)),IF(INDIRECT(ADDRESS(ROW(),COLUMN()-1,4))="44121701","Bolígrafos","")) -> Bolígrafos | C53: =IFERROR(VLOOKUP("CAJ",'Informacion '!P:Q,2,FALSE),"") -> Caja | D53: 25 | E53: 500 | F53: 12500
E54: TOTAL COMPRA ESTIMADA | F54: =SUM(Table4[MONTO TOTAL ESTIMADO]) -> 500680 | H54: =C16 -> Bienes | I54: =E16 -> Sí | J54: =D16 -> Compras Menores
A56: NOMBRE O REFERENCIA DE CONTRATACIÓN | B56: FINALIDAD DE LA CONTRATACIÓN | C56: OBJETO DE CONTRATACIÓN | D56: PROCEDIMIENTO DE SELECCIÓN | E56: DESTINADO A MIPYMES | F56: CÓDIGO SNIP
A57: Adquisicion de mobiliarios | B57: Para se utilizado en diferente departamento de esta Institucion | C57: Bienes | D57: Compras Menores | E57: MIPYME Mujeres
A58: FECHA DE NECESSIDAD | B58: FECHA INICIO PROCESO DE COMPRA | C58: 2023-04-20 | D58: LUGAR DE EJECUCIÓN / ENTREGA | E58: Región
B59: TRIMESTRE | C59: =IF(C58="","",IF(AND(MONTH(C58)>=1,MONTH(C58)<=3),1,IF(AND(MONTH(C58)>=4,MONTH(C58)<=6),2,IF(AND(MONTH(C58)>=7,MONTH(C58)<=9),3,4)))) -> 2 | E59: Provincia
B60: FECHA PREVISTA ADJUDICACIÓN | C60: 2023-05-12 | E60: Municipio
B61: TRIMESTRE | C61: =IF(C60="","",IF(AND(MONTH(C60)>=1,MONTH(C60)<=3),1,IF(AND(MONTH(C60)>=4,MONTH(C60)<=6),2,IF(AND(MONTH(C60)>=7,MONTH(C60)<=9),3,4)))) -> 2 | E61: Distrito Municipal
A63: CÓDIGO CATÁLOGO | B63: ARTÍCULO | C63: UNIDAD DE MEDIDA | D63: CANTIDAD TOTAL ESTIMADA | E63: PRECIO UNITARIO ESTIMADO | F63: MONTO TOTAL ESTIMADO
A64: 56101702 | B64: =IFERROR(INDEX(UNSPSCDes,MATCH(INDIRECT(ADDRESS(ROW(),COLUMN()-1,4)),UNSPSCCode,0)),IF(INDIRECT(ADDRESS(ROW(),COLUMN()-1,4))="56101702","Gabinetes de archivo o accesorios","")) -> Gabinetes de archivo o accesorios | C64: =IFERROR(VLOOKUP("UD",'Informacion '!P:Q,2,FALSE),"") -> Unidad | D64: 5 | E64: 9500 | F64: =INDIRECT(ADDRESS(ROW(),COLUMN()-2,4))*INDIRECT(ADDRESS(ROW(),COLUMN()-1,4)) -> 47500
A65: 56101703 | B65: =IFERROR(INDEX(UNSPSCDes,MATCH(INDIRECT(ADDRESS(ROW(),COLUMN()-1,4)),UNSPSCCode,0)),IF(INDIRECT(ADDRESS(ROW(),COLUMN()-1,4))="56101703","Escritorios","")) -> Escritorios | C65: =IFERROR(VLOOKUP("UD",'Informacion '!P:Q,2,FALSE),"") -> Unidad | D65: 10 | E65: 12500 | F65: 125000
A66: 56111707 | B66: =IFERROR(INDEX(UNSPSCDes,MATCH(INDIRECT(ADDRESS(ROW(),COLUMN()-1,4)),UNSPSCCode,0)),IF(INDIRECT(ADDRESS(ROW(),COLUMN()-1,4))="56111707","Repisas no modulares","")) -> Repisas no modulares | C66: =IFERROR(VLOOKUP("UD",'Informacion '!P:Q,2,FALSE),"") -> Unidad | D66: 5 | E66: 9500 | F66: 47500
A67: 56112104 | B67: =IFERROR(INDEX(UNSPSCDes,MATCH(INDIRECT(ADDRESS(ROW(),COLUMN()-1,4)),UNSPSCCode,0)),IF(INDIRECT(ADDRESS(ROW(),COLUMN()-1,4))="56112104","Sillas para ejecutivos","")) -> Sillas para ejecutivos | C67: =IFERROR(VLOOKUP("UD",'Informacion '!P:Q,2,FALSE),"") -> Unidad | D67: 10 | E67: 12000 | F67: 120000
A68: 56112103 | B68: =IFERROR(INDEX(UNSPSCDes,MATCH(INDIRECT(ADDRESS(ROW(),COLUMN()-1,4)),UNSPSCCode,0)),IF(INDIRECT(ADDRESS(ROW(),COLUMN()-1,4))="56112103","Sillas para visitantes","")) -> Sillas para visitantes | C68: =IFERROR(VLOOKUP("UD",'Informacion '!P:Q,2,FALSE),"") -> Unidad | D68: 12 | E68: 6500 | F68: 78000
A69: 56112105 | B69: =IFERROR(INDEX(UNSPSCDes,MATCH(INDIRECT(ADDRESS(ROW(),COLUMN()-1,4)),UNSPSCCode,0)),IF(INDIRECT(ADDRESS(ROW(),COLUMN()-1,4))="56112105","Sillas para descansar","")) -> Sillas para descansar | C69: =IFERROR(VLOOKUP("UD",'Informacion '!P:Q,2,FALSE),"") -> Unidad | D69: 5 | E69: 9500 | F69: 47500
E70: TOTAL COMPRA ESTIMADA | F70: =SUM(Table5[MONTO TOTAL ESTIMADO]) -> 465500 | H70: =C57 -> Bienes | I70: =E57 -> MIPYME Mujeres | J70: =D57 -> Compras Menores
A72: NOMBRE O REFERENCIA DE CONTRATACIÓN | B72: FINALIDAD DE LA CONTRATACIÓN | C72: OBJETO DE CONTRATACIÓN | D72: PROCEDIMIENTO DE SELECCIÓN | E72: DESTINADO A MIPYMES | F72: CÓDIGO SNIP
A73: Adquisición de Materiales de Limpieza | B73: Adquisición de Materiales de Limpieza para consumo de esta Institucion. | C73: Bienes | D73: Compras Menores | E73: No
A74: FECHA DE NECESSIDAD | B74: FECHA INICIO PROCESO DE COMPRA | C74: 2023-04-05 | D74: LUGAR DE EJECUCIÓN / ENTREGA | E74: Región
B75: TRIMESTRE | C75: =IF(C74="","",IF(AND(MONTH(C74)>=1,MONTH(C74)<=3),1,IF(AND(MONTH(C74)>=4,MONTH(C74)<=6),2,IF(AND(MONTH(C74)>=7,MONTH(C74)<=9),3,4)))) -> 2 | E75: Provincia
B76: FECHA PREVISTA ADJUDICACIÓN | C76: 2023-04-27 | E76: Municipio
B77: TRIMESTRE | C77: =IF(C76="","",IF(AND(MONTH(C76)>=1,MONTH(C76)<=3),1,IF(AND(MONTH(C76)>=4,MONTH(C76)<=6),2,IF(AND(MONTH(C76)>=7,MONTH(C76)<=9),3,4)))) -> 2 | E77: Distrito Municipal
A79: CÓDIGO CATÁLOGO | B79: ARTÍCULO | C79: UNIDAD DE MEDIDA | D79: CANTIDAD TOTAL ESTIMADA | E79: PRECIO UNITARIO ESTIMADO | F79: MONTO TOTAL ESTIMADO
A80: 47131604 | B80: =IFERROR(INDEX(UNSPSCDes,MATCH(INDIRECT(ADDRESS(ROW(),COLUMN()-1,4)),UNSPSCCode,0)),IF(INDIRECT(ADDRESS(ROW(),COLUMN()-1,4))="47131604","Escobas","")) -> Escobas | C80: =IFERROR(VLOOKUP("UD",'Informacion '!P:Q,2,FALSE),"") -> Unidad | D80: 40 | E80: 975 | F80: =INDIRECT(ADDRESS(ROW(),COLUMN()-2,4))*INDIRECT(ADDRESS(ROW(),COLUMN()-1,4)) -> 39000
A81: 47131611 | B81: =IFERROR(INDEX(UNSPSCDes,MATCH(INDIRECT(ADDRESS(ROW(),COLUMN()-1,4)),UNSPSCCode,0)),IF(INDIRECT(ADDRESS(ROW(),COLUMN()-1,4))="47131611","Recogedor de basura","")) -> Recogedor de basura | C81: =IFERROR(VLOOKUP("UD",'Informacion '!P:Q,2,FALSE),"") -> Unidad | D81: 50 | E81: 175 | F81: 8750
A82: 47131618 | B82: =IFERROR(INDEX(UNSPSCDes,MATCH(INDIRECT(ADDRESS(ROW(),COLUMN()-1,4)),UNSPSCCode,0)),IF(INDIRECT(ADDRESS(ROW(),COLUMN()-1,4))="47131618","Traperos húmedos","")) -> Traperos húmedos | C82: =IFERROR(VLOOKUP("UD",'Informacion '!P:Q,2,FALSE),"") -> Unidad | D82: 50 | E82: 250 | F82: 12500
A83: 47131801 | B83: =IFERROR(INDEX(UNSPSCDes,MATCH(INDIRECT(ADDRESS(ROW(),COLUMN()-1,4)),UNSPSCCode,0)),IF(INDIRECT(ADDRESS(ROW(),COLUMN()-1,4))="47131801","Limpiadores de pisos","")) -> Limpiadores de pisos | C83: =IFERROR(VLOOKUP("GAL",'Informacion '!P:Q,2,FALSE),"") -> Galón | D83: 60 | E83: 175 | F83: 10500
A84: 47131803 | B84: =IFERROR(INDEX(UNSPSCDes,MATCH(INDIRECT(ADDRESS(ROW(),COLUMN()-1,4)),UNSPSCCode,0)),IF(INDIRECT(ADDRESS(ROW(),COLUMN()-1,4))="47131803","Desinfectantes para uso doméstico","")) -> Desinfectantes para uso doméstico | C84: =IFERROR(VLOOKUP("GAL",'Informacion '!P:Q,2,FALSE),"") -> Galón | D84: 60 | E84: 185 | F84: 11100
A85: 47131829 | B85: =IFERROR(INDEX(UNSPSCDes,MATCH(INDIRECT(ADDRESS(ROW(),COLUMN()-1,4)),UNSPSCCode,0)),IF(INDIRECT(ADDRESS(ROW(),COLUMN()-1,4))="47131829","Limpiadores de baños","")) -> Limpiadores de baños | C85: =IFERROR(VLOOKUP("GAL",'Informacion '!P:Q,2,FALSE),"") -> Galón | D85: 60 | E85: 185 | F85: 11100
A86: 47131804 | B86: =IFERROR(INDEX(UNSPSCDes,MATCH(INDIRECT(ADDRESS(ROW(),COLUMN()-1,4)),UNSPSCCode,0)),IF(INDIRECT(ADDRESS(ROW(),COLUMN()-1,4))="47131804","Limpiadores de amoniaco","")) -> Limpiadores de amoniaco | C86: =IFERROR(VLOOKUP("GAL",'Informacion '!P:Q,2,FALSE),"") -> Galón | D86: 60 | E86: 250 | F86: 15000
A87: 47131502 | B87: =IFERROR(INDEX(UNSPSCDes,MATCH(INDIRECT(ADDRESS(ROW(),COLUMN()-1,4)),UNSPSCCode,0)),IF(INDIRECT(ADDRESS(ROW(),COLUMN()-1,4))="47131502","Pañitos o toallas para limpiar","")) -> Pañitos o toallas para limpiar | C87: =IFERROR(VLOOKUP("UD",'Informacion '!P:Q,2,FALSE),"") -> Unidad | D87: 30 | E87: 125 | F87: 3750
A88: 14111704 | B88: =IFERROR(INDEX(UNSPSCDes,MATCH(INDIRECT(ADDRESS(ROW(),COLUMN()-1,4)),UNSPSCCode,0)),IF(INDIRECT(ADDRESS(ROW(),COLUMN()-1,4))="14111704","Papel higiénico","")) -> Papel higiénico | C88: =IFERROR(VLOOKUP("UD",'Informacion '!P:Q,2,FALSE),"") -> Unidad | D88: 90 | E88: 950 | F88: 85500
A89: 14111703 | B89: =IFERROR(INDEX(UNSPSCDes,MATCH(INDIRECT(ADDRESS(ROW(),COLUMN()-1,4)),UNSPSCCode,0)),IF(INDIRECT(ADDRESS(ROW(),COLUMN()-1,4))="14111703","Toallas de papel","")) -> Toallas de papel | C89: =IFERROR(VLOOKUP("UD",'Informacion '!P:Q,2,FALSE),"") -> Unidad | D89: 90 | E89: 785 | F89: 70650
A90: 14111705 | B90: =IFERROR(INDEX(UNSPSCDes,MATCH(INDIRECT(ADDRESS(ROW(),COLUMN()-1,4)),UNSPSCCode,0)),IF(INDIRECT(ADDRESS(ROW(),COLUMN()-1,4))="14111705","Servilletas de papel","")) -> Servilletas de papel | C90: =IFERROR(VLOOKUP("UD",'Informacion '!P:Q,2,FALSE),"") -> Unidad | D90: 20 | E90: 250 | F90: 5000
A91: 47121806 | B91: =IFERROR(INDEX(UNSPSCDes,MATCH(INDIRECT(ADDRESS(ROW(),COLUMN()-1,4)),UNSPSCCode,0)),IF(INDIRECT(ADDRESS(ROW(),COLUMN()-1,4))="47121806","Escurridor de trapero","")) -> Escurridor de trapero | C91: =IFERROR(VLOOKUP("UD",'Informacion '!P:Q,2,FALSE),"") -> Unidad | D91: 50 | E91: 225 | F91: 11250
A92: 47121806 | B92: =IFERROR(INDEX(UNSPSCDes,MATCH(INDIRECT(ADDRESS(ROW(),COLUMN()-1,4)),UNSPSCCode,0)),IF(INDIRECT(ADDRESS(ROW(),COLUMN()-1,4))="47121806","Escurridor de trapero","")) -> Escurridor de trapero | C92: =IFERROR(VLOOKUP("UD",'Informacion '!P:Q,2,FALSE),"") -> Unidad | D92: 50 | E92: 225 | F92: 11250
A93: 10191509 | B93: =IFERROR(INDEX(UNSPSCDes,MATCH(INDIRECT(ADDRESS(ROW(),COLUMN()-1,4)),UNSPSCCode,0)),IF(INDIRECT(ADDRESS(ROW(),COLUMN()-1,4))="10191509","Insecticidas","")) -> Insecticidas | C93: =IFERROR(VLOOKUP("UD",'Informacion '!P:Q,2,FALSE),"") -> Unidad | D93: 150 | E93: 350 | F93: 52500
A94: 47131805 | B94: =IFERROR(INDEX(UNSPSCDes,MATCH(INDIRECT(ADDRESS(ROW(),COLUMN()-1,4)),UNSPSCCode,0)),IF(INDIRECT(ADDRESS(ROW(),COLUMN()-1,4))="47131805","Limpiadores de propósito general","")) -> Limpiadores de propósito general | C94: =IFERROR(VLOOKUP("UD",'Informacion '!P:Q,2,FALSE),"") -> Unidad | D94: 150 | E94: 175 | F94: 26250
A95: 47131805 | B95: =IFERROR(INDEX(UNSPSCDes,MATCH(INDIRECT(ADDRESS(ROW(),COLUMN()-1,4)),UNSPSCCode,0)),IF(INDIRECT(ADDRESS(ROW(),COLUMN()-1,4))="47131805","Limpiadores de propósito general","")) -> Limpiadores de propósito general | C95: =IFERROR(VLOOKUP("UD",'Informacion '!P:Q,2,FALSE),"") -> Unidad | D95: 150 | E95: 350 | F95: 52500
A96: 24111503 | B96: =IFERROR(INDEX(UNSPSCDes,MATCH(INDIRECT(ADDRESS(ROW(),COLUMN()-1,4)),UNSPSCCode,0)),IF(INDIRECT(ADDRESS(ROW(),COLUMN()-1,4))="24111503","Bolsas plásticas","")) -> Bolsas plásticas | C96: =IFERROR(VLOOKUP("UD",'Informacion '!P:Q,2,FALSE),"") -> Unidad | D96: 15000 | E96: 9 | F96: 135000
A97: 24111503 | B97: =IFERROR(INDEX(UNSPSCDes,MATCH(INDIRECT(ADDRESS(ROW(),COLUMN()-1,4)),UNSPSCCode,0)),IF(INDIRECT(ADDRESS(ROW(),COLUMN()-1,4))="24111503","Bolsas plásticas","")) -> Bolsas plásticas | C97: =IFERROR(VLOOKUP("UD",'Informacion '!P:Q,2,FALSE),"") -> Unidad | D97: 15000 | E97: 7 | F97: 105000
A98: 42281704 | B98: =IFERROR(INDEX(UNSPSCDes,MATCH(INDIRECT(ADDRESS(ROW(),COLUMN()-1,4)),UNSPSCCode,0)),IF(INDIRECT(ADDRESS(ROW(),COLUMN()-1,4))="42281704","Limpiadores o detergentes para instrumentos","")) -> Limpiadores o detergentes para instrumentos | C98: =IFERROR(VLOOKUP("UD",'Informacion '!P:Q,2,FALSE),"") -> Unidad | D98: 8 | E98: 1500 | F98: 12000
A99: 12352104 | B99: =IFERROR(INDEX(UNSPSCDes,MATCH(INDIRECT(ADDRESS(ROW(),COLUMN()-1,4)),UNSPSCCode,0)),IF(INDIRECT(ADDRESS(ROW(),COLUMN()-1,4))="12352104","Alcoholes o sus sustitutos","")) -> Alcoholes o sus sustitutos | C99: =IFERROR(VLOOKUP("GAL",'Informacion '!P:Q,2,FALSE),"") -> Galón | D99: 30 | E99: 1000 | F99: 30000
A100: 31211910 | B100: =IFERROR(INDEX(UNSPSCDes,MATCH(INDIRECT(ADDRESS(ROW(),COLUMN()-1,4)),UNSPSCCode,0)),IF(INDIRECT(ADDRESS(ROW(),COLUMN()-1,4))="31211910","Guantes para pintar","")) -> Guantes para pintar | C100: =IFERROR(VLOOKUP("UD",'Informacion '!P:Q,2,FALSE),"") -> Unidad | D100: 20 | E100: 60 | F100: 1200
A101: 47131810 | B101: =IFERROR(INDEX(UNSPSCDes,MATCH(INDIRECT(ADDRESS(ROW(),COLUMN()-1,4)),UNSPSCCode,0)),IF(INDIRECT(ADDRESS(ROW(),COLUMN()-1,4))="47131810","Productos para el lavaplatos","")) -> Productos para el lavaplatos | C101: =IFERROR(VLOOKUP("GAL",'Informacion '!P:Q,2,FALSE),"") -> Galón | D101: 10 | E101: 200 | F101: 2000
A102: 14111704 | B102: =IFERROR(INDEX(UNSPSCDes,MATCH(INDIRECT(ADDRESS(ROW(),COLUMN()-1,4)),UNSPSCCode,0)),IF(INDIRECT(ADDRESS(ROW(),COLUMN()-1,4))="14111704","Papel higiénico","")) -> Papel higiénico | C102: =IFERROR(VLOOKUP("PAQ",'Informacion '!P:Q,2,FALSE),"") -> Paquete | D102: 10 | E102: 800 | F102: 8000
A103: 47131830 | B103: =IFERROR(INDEX(UNSPSCDes,MATCH(INDIRECT(ADDRESS(ROW(),COLUMN()-1,4)),UNSPSCCode,0)),IF(INDIRECT(ADDRESS(ROW(),COLUMN()-1,4))="47131830","Limpiadores de muebles","")) -> Limpiadores de muebles | C103: =IFERROR(VLOOKUP("GAL",'Informacion '!P:Q,2,FALSE),"") -> Galón | D103: 10 | E103: 800 | F103: 8000
A104: 14111704 | B104: =IFERROR(INDEX(UNSPSCDes,MATCH(INDIRECT(ADDRESS(ROW(),COLUMN()-1,4)),UNSPSCCode,0)),IF(INDIRECT(ADDRESS(ROW(),COLUMN()-1,4))="14111704","Papel higiénico","")) -> Papel higiénico | C104: =IFERROR(VLOOKUP("PAQ",'Informacion '!P:Q,2,FALSE),"") -> Paquete | D104: 10 | E104: 600 | F104: 6000
A105: 14121504 | B105: =IFERROR(INDEX(UNSPSCDes,MATCH(INDIRECT(ADDRESS(ROW(),COLUMN()-1,4)),UNSPSCCode,0)),IF(INDIRECT(ADDRESS(ROW(),COLUMN()-1,4))="14121504","Papel de empaque","")) -> Papel de empaque | C105: =IFERROR(VLOOKUP("UD",'Informacion '!P:Q,2,FALSE),"") -> Unidad | D105: 10 | E105: 200 | F105: 2000
A106: 47131502 | B106: =IFERROR(INDEX(UNSPSCDes,MATCH(INDIRECT(ADDRESS(ROW(),COLUMN()-1,4)),UNSPSCCode,0)),IF(INDIRECT(ADDRESS(ROW(),COLUMN()-1,4))="47131502","Pañitos o toallas para limpiar","")) -> Pañitos o toallas para limpiar | C106: =IFERROR(VLOOKUP("PAQ",'Informacion '!P:Q,2,FALSE),"") -> Paquete | D106: 15 | E106: 1800 | F106: 27000
A107: 53131608 | B107: =IFERROR(INDEX(UNSPSCDes,MATCH(INDIRECT(ADDRESS(ROW(),COLUMN()-1,4)),UNSPSCCode,0)),IF(INDIRECT(ADDRESS(ROW(),COLUMN()-1,4))="53131608","Jabones","")) -> Jabones | C107: =IFERROR(VLOOKUP("UD",'Informacion '!P:Q,2,FALSE),"") -> Unidad | D107: 15 | E107: 1600 | F107: 24000
A108: 14111705 | B108: =IFERROR(INDEX(UNSPSCDes,MATCH(INDIRECT(ADDRESS(ROW(),COLUMN()-1,4)),UNSPSCCode,0)),IF(INDIRECT(ADDRESS(ROW(),COLUMN()-1,4))="14111705","Servilletas de papel","")) -> Servilletas de papel | C108: =IFERROR(VLOOKUP("UD",'Informacion '!P:Q,2,FALSE),"") -> Unidad | D108: 10 | E108: 1900 | F108: 19000
A109: 25111903 | B109: =IFERROR(INDEX(UNSPSCDes,MATCH(INDIRECT(ADDRESS(ROW(),COLUMN()-1,4)),UNSPSCCode,0)),IF(INDIRECT(ADDRESS(ROW(),COLUMN()-1,4))="25111903","Velas","")) -> Velas | C109: =IFERROR(VLOOKUP("UD",'Informacion '!P:Q,2,FALSE),"") -> Unidad | D109: 20 | E109: 200 | F109: 4000
A110: 14111705 | B110: =IFERROR(INDEX(UNSPSCDes,MATCH(INDIRECT(ADDRESS(ROW(),COLUMN()-1,4)),UNSPSCCode,0)),IF(INDIRECT(ADDRESS(ROW(),COLUMN()-1,4))="14111705","Servilletas de papel","")) -> Servilletas de papel | C110: =IFERROR(VLOOKUP("UD",'Informacion '!P:Q,2,FALSE),"") -> Unidad | D110: 15 | E110: 2200 | F110: 33000
A111: 24101510 | B111: =IFERROR(INDEX(UNSPSCDes,MATCH(INDIRECT(ADDRESS(ROW(),COLUMN()-1,4)),UNSPSCCode,0)),IF(INDIRECT(ADDRESS(ROW(),COLUMN()-1,4))="24101510","Contenedor de basura plástico","")) -> Contenedor de basura plástico | C111: =IFERROR(VLOOKUP("UD",'Informacion '!P:Q,2,FALSE),"") -> Unidad | D111: 15 | E111: 300 | F111: 4500
E112: TOTAL COMPRA ESTIMADA | F112: =SUM(Table8[MONTO TOTAL ESTIMADO]) -> 847300 | H112: =C73 -> Bienes | I112: =E73 -> No | J112: =D73 -> Compras Menores
A114: NOMBRE O REFERENCIA DE CONTRATACIÓN | B114: FINALIDAD DE LA CONTRATACIÓN | C114: OBJETO DE CONTRATACIÓN | D114: PROCEDIMIENTO DE SELECCIÓN | E114: DESTINADO A MIPYMES | F114: CÓDIGO SNIP
A115: Adquisición de Materiales de Oficina | B115: Adquisición de Materiales de Oficina para uso de Institucional. del terce trimestre | C115: Bienes | D115: Compras Menores | E115: No
A116: FECHA DE NECESSIDAD | B116: FECHA INICIO PROCESO DE COMPRA | C116: 2023-06-30 | D116: LUGAR DE EJECUCIÓN / ENTREGA | E116: Región
B117: TRIMESTRE | C117: =IF(C116="","",IF(AND(MONTH(C116)>=1,MONTH(C116)<=3),1,IF(AND(MONTH(C116)>=4,MONTH(C116)<=6),2,IF(AND(MONTH(C116)>=7,MONTH(C116)<=9),3,4)))) -> 2 | E117: Provincia
B118: FECHA PREVISTA ADJUDICACIÓN | C118: 2023-06-30 | E118: Municipio
B119: TRIMESTRE | C119: =IF(C118="","",IF(AND(MONTH(C118)>=1,MONTH(C118)<=3),1,IF(AND(MONTH(C118)>=4,MONTH(C118)<=6),2,IF(AND(MONTH(C118)>=7,MONTH(C118)<=9),3,4)))) -> 2 | E119: Distrito Municipal
A121: CÓDIGO CATÁLOGO | B121: ARTÍCULO | C121: UNIDAD DE MEDIDA | D121: CANTIDAD TOTAL ESTIMADA | E121: PRECIO UNITARIO ESTIMADO | F121: MONTO TOTAL ESTIMADO
A122: 44111611 | B122: =IFERROR(INDEX(UNSPSCDes,MATCH(INDIRECT(ADDRESS(ROW(),COLUMN()-1,4)),UNSPSCCode,0)),IF(INDIRECT(ADDRESS(ROW(),COLUMN()-1,4))="44111611","Clips para billetes","")) -> Clips para billetes | C122: =IFERROR(VLOOKUP("CAJ",'Informacion '!P:Q,2,FALSE),"") -> Caja | D122: 25 | E122: 230 | F122: =INDIRECT(ADDRESS(ROW(),COLUMN()-2,4))*INDIRECT(ADDRESS(ROW(),COLUMN()-1,4)) -> 5750
A123: 44111611 | B123: =IFERROR(INDEX(UNSPSCDes,MATCH(INDIRECT(ADDRESS(ROW(),COLUMN()-1,4)),UNSPSCCode,0)),IF(INDIRECT(ADDRESS(ROW(),COLUMN()-1,4))="44111611","Clips para billetes","")) -> Clips para billetes | C123: =IFERROR(VLOOKUP("CAJ",'Informacion '!P:Q,2,FALSE),"") -> Caja | D123: 25 | E123: 230 | F123: 5750
A124: 44111611 | B124: =IFERROR(INDEX(UNSPSCDes,MATCH(INDIRECT(ADDRESS(ROW(),COLUMN()-1,4)),UNSPSCCode,0)),IF(INDIRECT(ADDRESS(ROW(),COLUMN()-1,4))="44111611","Clips para billetes","")) -> Clips para billetes | C124: =IFERROR(VLOOKUP("CAJ",'Informacion '!P:Q,2,FALSE),"") -> Caja | D124: 30 | E124: 235 | F124: 7050
A125: 44103507 | B125: =IFERROR(INDEX(UNSPSCDes,MATCH(INDIRECT(ADDRESS(ROW(),COLUMN()-1,4)),UNSPSCCode,0)),IF(INDIRECT(ADDRESS(ROW(),COLUMN()-1,4))="44103507","Kits de encuadernación","")) -> Kits de encuadernación | C125: =IFERROR(VLOOKUP("CAJ",'Informacion '!P:Q,2,FALSE),"") -> Caja | D125: 25 | E125: 250 | F125: 6250
A126: 44103507 | B126: =IFERROR(INDEX(UNSPSCDes,MATCH(INDIRECT(ADDRESS(ROW(),COLUMN()-1,4)),UNSPSCCode,0)),IF(INDIRECT(ADDRESS(ROW(),COLUMN()-1,4))="44103507","Kits de encuadernación","")) -> Kits de encuadernación | C126: =IFERROR(VLOOKUP("CAJ",'Informacion '!P:Q,2,FALSE),"") -> Caja | D126: 50 | E126: 225 | F126: 11250
A127: 14111507 | B127: =IFERROR(INDEX(UNSPSCDes,MATCH(INDIRECT(ADDRESS(ROW(),COLUMN()-1,4)),UNSPSCCode,0)),IF(INDIRECT(ADDRESS(ROW(),COLUMN()-1,4))="14111507","Papel para impresora o fotocopiadora","")) -> Papel para impresora o fotocopiadora | C127: =IFERROR(VLOOKUP("UD",'Informacion '!P:Q,2,FALSE),"") -> Unidad | D127: 50 | E127: 225 | F127: 11250
A128: 44122011 | B128: =IFERROR(INDEX(UNSPSCDes,MATCH(INDIRECT(ADDRESS(ROW(),COLUMN()-1,4)),UNSPSCCode,0)),IF(INDIRECT(ADDRESS(ROW(),COLUMN()-1,4))="44122011","Folders","")) -> Folders | C128: =IFERROR(VLOOKUP("CAJ",'Informacion '!P:Q,2,FALSE),"") -> Caja | D128: 50 | E128: 1230 | F128: 61500
A129: 44122104 | B129: =IFERROR(INDEX(UNSPSCDes,MATCH(INDIRECT(ADDRESS(ROW(),COLUMN()-1,4)),UNSPSCCode,0)),IF(INDIRECT(ADDRESS(ROW(),COLUMN()-1,4))="44122104","Clips para papel","")) -> Clips para papel | C129: =IFERROR(VLOOKUP("CAJ",'Informacion '!P:Q,2,FALSE),"") -> Caja | D129: 50 | E129: 200 | F129: 10000
A130: 44122104 | B130: =IFERROR(INDEX(UNSPSCDes,MATCH(INDIRECT(ADDRESS(ROW(),COLUMN()-1,4)),UNSPSCCode,0)),IF(INDIRECT(ADDRESS(ROW(),COLUMN()-1,4))="44122104","Clips para papel","")) -> Clips para papel | C130: =IFERROR(VLOOKUP("CAJ",'Informacion '!P:Q,2,FALSE),"") -> Caja | D130: 50 | E130: 200 | F130: 10000
A131: 44122104 | B131: =IFERROR(INDEX(UNSPSCDes,MATCH(INDIRECT(ADDRESS(ROW(),COLUMN()-1,4)),UNSPSCCode,0)),IF(INDIRECT(ADDRESS(ROW(),COLUMN()-1,4))="44122104","Clips para papel","")) -> Clips para papel | C131: =IFERROR(VLOOKUP("CAJ",'Informacion '!P:Q,2,FALSE),"") -> Caja | D131: 50 | E131: 200 | F131: 10000
A132: 44121708 | B132: =IFERROR(INDEX(UNSPSCDes,MATCH(INDIRECT(ADDRESS(ROW(),COLUMN()-1,4)),UNSPSCCode,0)),IF(INDIRECT(ADDRESS(ROW(),COLUMN()-1,4))="44121708","Marcadores","")) -> Marcadores | C132: =IFERROR(VLOOKUP("CAJ",'Informacion '!P:Q,2,FALSE),"") -> Caja | D132: 50 | E132: 200 | F132: 10000
A133: 44121716 | B133: =IFERROR(INDEX(UNSPSCDes,MATCH(INDIRECT(ADDRESS(ROW(),COLUMN()-1,4)),UNSPSCCode,0)),IF(INDIRECT(ADDRESS(ROW(),COLUMN()-1,4))="44121716","Resaltadores","")) -> Resaltadores | C133: =IFERROR(VLOOKUP("CAJ",'Informacion '!P:Q,2,FALSE),"") -> Caja | D133: 20 | E133: 400 | F133: 8000
A134: 44103507 | B134: =IFERROR(INDEX(UNSPSCDes,MATCH(INDIRECT(ADDRESS(ROW(),COLUMN()-1,4)),UNSPSCCode,0)),IF(INDIRECT(ADDRESS(ROW(),COLUMN()-1,4))="44103507","Kits de encuadernación","")) -> Kits de encuadernación | C134: =IFERROR(VLOOKUP("CAJ",'Informacion '!P:Q,2,FALSE),"") -> Caja | D134: 25 | E134: 100 | F134: 2500
A135: 44103507 | B135: =IFERROR(INDEX(UNSPSCDes,MATCH(INDIRECT(ADDRESS(ROW(),COLUMN()-1,4)),UNSPSCCode,0)),IF(INDIRECT(ADDRESS(ROW(),COLUMN()-1,4))="44103507","Kits de encuadernación","")) -> Kits de encuadernación | C135: =IFERROR(VLOOKUP("CAJ",'Informacion '!P:Q,2,FALSE),"") -> Caja | D135: 50 | E135: 100 | F135: 5000
A136: 60121111 | B136: =IFERROR(INDEX(UNSPSCDes,MATCH(INDIRECT(ADDRESS(ROW(),COLUMN()-1,4)),UNSPSCCode,0)),IF(INDIRECT(ADDRESS(ROW(),COLUMN()-1,4))="60121111","Cartulina de sulfito","")) -> Cartulina de sulfito | C136: =IFERROR(VLOOKUP("UD",'Informacion '!P:Q,2,FALSE),"") -> Unidad | D136: 20 | E136: 75 | F136: 1500
A137: 60121535 | B137: =IFERROR(INDEX(UNSPSCDes,MATCH(INDIRECT(ADDRESS(ROW(),COLUMN()-1,4)),UNSPSCCode,0)),IF(INDIRECT(ADDRESS(ROW(),COLUMN()-1,4))="60121535","Borradores de goma","")) -> Borradores de goma | C137: =IFERROR(VLOOKUP("CAJ",'Informacion '!P:Q,2,FALSE),"") -> Caja | D137: 50 | E137: 700 | F137: 35000
A138: 14111526 | B138: =IFERROR(INDEX(UNSPSCDes,MATCH(INDIRECT(ADDRESS(ROW(),COLUMN()-1,4)),UNSPSCCode,0)),IF(INDIRECT(ADDRESS(ROW(),COLUMN()-1,4))="14111526","Papel libretas o libros de mensajes telefónicos","")) -> Papel libretas o libros de mensajes telefónicos | C138: =IFERROR(VLOOKUP("CAJ",'Informacion '!P:Q,2,FALSE),"") -> Caja | D138: 50 | E138: 400 | F138: 20000
A139: 14111526 | B139: =IFERROR(INDEX(UNSPSCDes,MATCH(INDIRECT(ADDRESS(ROW(),COLUMN()-1,4)),UNSPSCCode,0)),IF(INDIRECT(ADDRESS(ROW(),COLUMN()-1,4))="14111526","Papel libretas o libros de mensajes telefónicos","")) -> Papel libretas o libros de mensajes telefónicos | C139: =IFERROR(VLOOKUP("CAJ",'Informacion '!P:Q,2,FALSE),"") -> Caja | D139: 50 | E139: 400 | F139: 20000
A140: 43232503 | B140: =IFERROR(INDEX(UNSPSCDes,MATCH(INDIRECT(ADDRESS(ROW(),COLUMN()-1,4)),UNSPSCCode,0)),IF(INDIRECT(ADDRESS(ROW(),COLUMN()-1,4))="43232503","Correctores de ortografía","")) -> Correctores de ortografía | C140: =IFERROR(VLOOKUP("UD",'Informacion '!P:Q,2,FALSE),"") -> Unidad | D140: 50 | E140: 100 | F140: 5000
A141: 43232503 | B141: =IFERROR(INDEX(UNSPSCDes,MATCH(INDIRECT(ADDRESS(ROW(),COLUMN()-1,4)),UNSPSCCode,0)),IF(INDIRECT(ADDRESS(ROW(),COLUMN()-1,4))="43232503","Correctores de ortografía","")) -> Correctores de ortografía | C141: =IFERROR(VLOOKUP("UD",'Informacion '!P:Q,2,FALSE),"") -> Unidad | D141: 100 | E141: 100 | F141: 10000
A142: 44121613 | B142: =IFERROR(INDEX(UNSPSCDes,MATCH(INDIRECT(ADDRESS(ROW(),COLUMN()-1,4)),UNSPSCCode,0)),IF(INDIRECT(ADDRESS(ROW(),COLUMN()-1,4))="44121613","Removedores de grapas (saca ganchos)","")) -> Removedores de grapas (saca ganchos) | C142: =IFERROR(VLOOKUP("UD",'Informacion '!P:Q,2,FALSE),"") -> Unidad | D142: 50 | E142: 75 | F142: 3750
A143: 45101508 | B143: =IFERROR(INDEX(UNSPSCDes,MATCH(INDIRECT(ADDRESS(ROW(),COLUMN()-1,4)),UNSPSCCode,0)),IF(INDIRECT(ADDRESS(ROW(),COLUMN()-1,4))="45101508","Máquinas perforadoras","")) -> Máquinas perforadoras | C143: =IFERROR(VLOOKUP("UD",'Informacion '!P:Q,2,FALSE),"") -> Unidad | D143: 50 | E143: 600 | F143: 30000
A144: 31201610 | B144: =IFERROR(INDEX(UNSPSCDes,MATCH(INDIRECT(ADDRESS(ROW(),COLUMN()-1,4)),UNSPSCCode,0)),IF(INDIRECT(ADDRESS(ROW(),COLUMN()-1,4))="31201610","Pegamentos","")) -> Pegamentos | C144: =IFERROR(VLOOKUP("UD",'Informacion '!P:Q,2,FALSE),"") -> Unidad | D144: 50 | E144: 150 | F144: 7500
A145: 26111705 | B145: =IFERROR(INDEX(UNSPSCDes,MATCH(INDIRECT(ADDRESS(ROW(),COLUMN()-1,4)),UNSPSCCode,0)),IF(INDIRECT(ADDRESS(ROW(),COLUMN()-1,4))="26111705","Pilas secas","")) -> Pilas secas | C145: =IFERROR(VLOOKUP("PAQ",'Informacion '!P:Q,2,FALSE),"") -> Paquete | D145: 50 | E145: 400 | F145: 20000
A146: 26111705 | B146: =IFERROR(INDEX(UNSPSCDes,MATCH(INDIRECT(ADDRESS(ROW(),COLUMN()-1,4)),UNSPSCCode,0)),IF(INDIRECT(ADDRESS(ROW(),COLUMN()-1,4))="26111705","Pilas secas","")) -> Pilas secas | C146: =IFERROR(VLOOKUP("PAQ",'Informacion '!P:Q,2,FALSE),"") -> Paquete | D146: 1 | E146: 400 | F146: 400
A147: 44121506 | B147: =IFERROR(INDEX(UNSPSCDes,MATCH(INDIRECT(ADDRESS(ROW(),COLUMN()-1,4)),UNSPSCCode,0)),IF(INDIRECT(ADDRESS(ROW(),COLUMN()-1,4))="44121506","Sobres estándar","")) -> Sobres estándar | C147: =IFERROR(VLOOKUP("CAJ",'Informacion '!P:Q,2,FALSE),"") -> Caja | D147: 1 | E147: 150 | F147: 150
A148: 44121506 | B148: =IFERROR(INDEX(UNSPSCDes,MATCH(INDIRECT(ADDRESS(ROW(),COLUMN()-1,4)),UNSPSCCode,0)),IF(INDIRECT(ADDRESS(ROW(),COLUMN()-1,4))="44121506","Sobres estándar","")) -> Sobres estándar | C148: =IFERROR(VLOOKUP("CAJ",'Informacion '!P:Q,2,FALSE),"") -> Caja | D148: 1 | E148: 150 | F148: 150
A149: 44121506 | B149: =IFERROR(INDEX(UNSPSCDes,MATCH(INDIRECT(ADDRESS(ROW(),COLUMN()-1,4)),UNSPSCCode,0)),IF(INDIRECT(ADDRESS(ROW(),COLUMN()-1,4))="44121506","Sobres estándar","")) -> Sobres estándar | C149: =IFERROR(VLOOKUP("CAJ",'Informacion '!P:Q,2,FALSE),"") -> Caja | D149: 1 | E149: 200 | F149: 200
A150: 44121506 | B150: =IFERROR(INDEX(UNSPSCDes,MATCH(INDIRECT(ADDRESS(ROW(),COLUMN()-1,4)),UNSPSCCode,0)),IF(INDIRECT(ADDRESS(ROW(),COLUMN()-1,4))="44121506","Sobres estándar","")) -> Sobres estándar | C150: =IFERROR(VLOOKUP("CAJ",'Informacion '!P:Q,2,FALSE),"") -> Caja | D150: 300 | E150: 200 | F150: 60000
A151: 14111507 | B151: =IFERROR(INDEX(UNSPSCDes,MATCH(INDIRECT(ADDRESS(ROW(),COLUMN()-1,4)),UNSPSCCode,0)),IF(INDIRECT(ADDRESS(ROW(),COLUMN()-1,4))="14111507","Papel para impresora o fotocopiadora","")) -> Papel para impresora o fotocopiadora | C151: =IFERROR(VLOOKUP("RESMA",'Informacion '!P:Q,2,FALSE),"") -> Resma | D151: 300 | E151: 300 | F151: 90000
A152: 14111507 | B152: =IFERROR(INDEX(UNSPSCDes,MATCH(INDIRECT(ADDRESS(ROW(),COLUMN()-1,4)),UNSPSCCode,0)),IF(INDIRECT(ADDRESS(ROW(),COLUMN()-1,4))="14111507","Papel para impresora o fotocopiadora","")) -> Papel para impresora o fotocopiadora | C152: =IFERROR(VLOOKUP("RESMA",'Informacion '!P:Q,2,FALSE),"") -> Resma | D152: 5 | E152: 300 | F152: 1500
A153: 44122011 | B153: =IFERROR(INDEX(UNSPSCDes,MATCH(INDIRECT(ADDRESS(ROW(),COLUMN()-1,4)),UNSPSCCode,0)),IF(INDIRECT(ADDRESS(ROW(),COLUMN()-1,4))="44122011","Folders","")) -> Folders | C153: =IFERROR(VLOOKUP("CAJ",'Informacion '!P:Q,2,FALSE),"") -> Caja | D153: 5 | E153: 400 | F153: 2000
A154: 44122011 | B154: =IFERROR(INDEX(UNSPSCDes,MATCH(INDIRECT(ADDRESS(ROW(),COLUMN()-1,4)),UNSPSCCode,0)),IF(INDIRECT(ADDRESS(ROW(),COLUMN()-1,4))="44122011","Folders","")) -> Folders | C154: =IFERROR(VLOOKUP("CAJ",'Informacion '!P:Q,2,FALSE),"") -> Caja | D154: 25 | E154: 400 | F154: 10000
A155: 44122107 | B155: =IFERROR(INDEX(UNSPSCDes,MATCH(INDIRECT(ADDRESS(ROW(),COLUMN()-1,4)),UNSPSCCode,0)),IF(INDIRECT(ADDRESS(ROW(),COLUMN()-1,4))="44122107","Grapas","")) -> Grapas | C155: =IFERROR(VLOOKUP("CAJ",'Informacion '!P:Q,2,FALSE),"") -> Caja | D155: 50 | E155: 200 | F155: 10000
A156: 44122104 | B156: =IFERROR(INDEX(UNSPSCDes,MATCH(INDIRECT(ADDRESS(ROW(),COLUMN()-1,4)),UNSPSCCode,0)),IF(INDIRECT(ADDRESS(ROW(),COLUMN()-1,4))="44122104","Clips para papel","")) -> Clips para papel | C156: =IFERROR(VLOOKUP("CAJ",'Informacion '!P:Q,2,FALSE),"") -> Caja | D156: 50 | E156: 250 | F156: 12500
A157: 44122104 | B157: =IFERROR(INDEX(UNSPSCDes,MATCH(INDIRECT(ADDRESS(ROW(),COLUMN()-1,4)),UNSPSCCode,0)),IF(INDIRECT(ADDRESS(ROW(),COLUMN()-1,4))="44122104","Clips para papel","")) -> Clips para papel | C157: =IFERROR(VLOOKUP("CAJ",'Informacion '!P:Q,2,FALSE),"") -> Caja | D157: 50 | E157: 300 | F157: 15000
A158: 44122104 | B158: =IFERROR(INDEX(UNSPSCDes,MATCH(INDIRECT(ADDRESS(ROW(),COLUMN()-1,4)),UNSPSCCode,0)),IF(INDIRECT(ADDRESS(ROW(),COLUMN()-1,4))="44122104","Clips para papel","")) -> Clips para papel | C158: =IFERROR(VLOOKUP("CAJ",'Informacion '!P:Q,2,FALSE),"") -> Caja | D158: 25 | E158: 350 | F158: 8750
A159: 44122107 | B159: =IFERROR(INDEX(UNSPSCDes,MATCH(INDIRECT(ADDRESS(ROW(),COLUMN()-1,4)),UNSPSCCode,0)),IF(INDIRECT(ADDRESS(ROW(),COLUMN()-1,4))="44122107","Grapas","")) -> Grapas | C159: =IFERROR(VLOOKUP("CAJ",'Informacion '!P:Q,2,FALSE),"") -> Caja | D159: 25 | E159: 250 | F159: 6250
A160: 44121701 | B160: =IFERROR(INDEX(UNSPSCDes,MATCH(INDIRECT(ADDRESS(ROW(),COLUMN()-1,4)),UNSPSCCode,0)),IF(INDIRECT(ADDRESS(ROW(),COLUMN()-1,4))="44121701","Bolígrafos","")) -> Bolígrafos | C160: =IFERROR(VLOOKUP("CAJ",'Informacion '!P:Q,2,FALSE),"") -> Caja | D160: 30 | E160: 100 | F160: 3000
A161: 44101802 | B161: =IFERROR(INDEX(UNSPSCDes,MATCH(INDIRECT(ADDRESS(ROW(),COLUMN()-1,4)),UNSPSCCode,0)),IF(INDIRECT(ADDRESS(ROW(),COLUMN()-1,4))="44101802","Máquinas sumadoras","")) -> Máquinas sumadoras | C161: =IFERROR(VLOOKUP("CAJ",'Informacion '!P:Q,2,FALSE),"") -> Caja | D161: 20 | E161: 4000 | F161: 80000
A162: 44121618 | B162: =IFERROR(INDEX(UNSPSCDes,MATCH(INDIRECT(ADDRESS(ROW(),COLUMN()-1,4)),UNSPSCCode,0)),IF(INDIRECT(ADDRESS(ROW(),COLUMN()-1,4))="44121618","Tijeras","")) -> Tijeras | C162: =IFERROR(VLOOKUP("CAJ",'Informacion '!P:Q,2,FALSE),"") -> Caja | D162: 20 | E162: 300 | F162: 6000
A163: 44111808 | B163: =IFERROR(INDEX(UNSPSCDes,MATCH(INDIRECT(ADDRESS(ROW(),COLUMN()-1,4)),UNSPSCCode,0)),IF(INDIRECT(ADDRESS(ROW(),COLUMN()-1,4))="44111808","Reglas t","")) -> Reglas t | C163: =IFERROR(VLOOKUP("CAJ",'Informacion '!P:Q,2,FALSE),"") -> Caja | D163: 20 | E163: 250 | F163: 5000
E164: TOTAL COMPRA ESTIMADA | F164: =SUM(Table9[MONTO TOTAL ESTIMADO]) -> 627950 | H164: =C115 -> Bienes | I164: =E115 -> No | J164: =D115 -> Compras Menores
A166: NOMBRE O REFERENCIA DE CONTRATACIÓN | B166: FINALIDAD DE LA CONTRATACIÓN | C166: OBJETO DE CONTRATACIÓN | D166: PROCEDIMIENTO DE SELECCIÓN | E166: DESTINADO A MIPYMES | F166: CÓDIGO SNIP
A167: Impresion | B167: Impresión para la Institución | C167: Bienes | D167: Compras Menores | E167: No
A168: FECHA DE NECESSIDAD | B168: FECHA INICIO PROCESO DE COMPRA | C168: 2023-04-07 | D168: LUGAR DE EJECUCIÓN / ENTREGA | E168: Región
B169: TRIMESTRE | C169: =IF(C168="","",IF(AND(MONTH(C168)>=1,MONTH(C168)<=3),1,IF(AND(MONTH(C168)>=4,MONTH(C168)<=6),2,IF(AND(MONTH(C168)>=7,MONTH(C168)<=9),3,4)))) -> 2 | E169: Provincia
B170: FECHA PREVISTA ADJUDICACIÓN | C170: 2023-10-02 | E170: Municipio
B171: TRIMESTRE | C171: =IF(C170="","",IF(AND(MONTH(C170)>=1,MONTH(C170)<=3),1,IF(AND(MONTH(C170)>=4,MONTH(C170)<=6),2,IF(AND(MONTH(C170)>=7,MONTH(C170)<=9),3,4)))) -> 4 | E171: Distrito Municipal
A173: CÓDIGO CATÁLOGO | B173: ARTÍCULO | C173: UNIDAD DE MEDIDA | D173: CANTIDAD TOTAL ESTIMADA | E173: PRECIO UNITARIO ESTIMADO | F173: MONTO TOTAL ESTIMADO
A174: 14111604 | B174: =IFERROR(INDEX(UNSPSCDes,MATCH(INDIRECT(ADDRESS(ROW(),COLUMN()-1,4)),UNSPSCCode,0)),IF(INDIRECT(ADDRESS(ROW(),COLUMN()-1,4))="14111604","Tarjetas de presentación","")) -> Tarjetas de presentación | C174: =IFERROR(VLOOKUP("UD",'Informacion '!P:Q,2,FALSE),"") -> Unidad | D174: 5000 | E174: 30 | F174: =INDIRECT(ADDRESS(ROW(),COLUMN()-2,4))*INDIRECT(ADDRESS(ROW(),COLUMN()-1,4)) -> 150000
A175: 14111606 | B175: =IFERROR(INDEX(UNSPSCDes,MATCH(INDIRECT(ADDRESS(ROW(),COLUMN()-1,4)),UNSPSCCode,0)),IF(INDIRECT(ADDRESS(ROW(),COLUMN()-1,4))="14111606","Papel para artes o artesanías","")) -> Papel para artes o artesanías | C175: =IFERROR(VLOOKUP("UD",'Informacion '!P:Q,2,FALSE),"") -> Unidad | D175: 50 | E175: 2500 | F175: =INDIRECT(ADDRESS(ROW(),COLUMN()-2,4))*INDIRECT(ADDRESS(ROW(),COLUMN()-1,4)) -> 125000
A176: 14111615 | B176: =IFERROR(INDEX(UNSPSCDes,MATCH(INDIRECT(ADDRESS(ROW(),COLUMN()-1,4)),UNSPSCCode,0)),IF(INDIRECT(ADDRESS(ROW(),COLUMN()-1,4))="14111615","Papeles de afiche","")) -> Papeles de afiche | C176: =IFERROR(VLOOKUP("UD",'Informacion '!P:Q,2,FALSE),"") -> Unidad | D176: 25 | E176: 4700 | F176: =INDIRECT(ADDRESS(ROW(),COLUMN()-2,4))*INDIRECT(ADDRESS(ROW(),COLUMN()-1,4)) -> 117500
A177: 60121233 | B177: =IFERROR(INDEX(UNSPSCDes,MATCH(INDIRECT(ADDRESS(ROW(),COLUMN()-1,4)),UNSPSCCode,0)),IF(INDIRECT(ADDRESS(ROW(),COLUMN()-1,4))="60121233","Sellos de esponja","")) -> Sellos de esponja | C177: =IFERROR(VLOOKUP("UD",'Informacion '!P:Q,2,FALSE),"") -> Unidad | D177: 25 | E177: 2300 | F177: =INDIRECT(ADDRESS(ROW(),COLUMN()-2,4))*INDIRECT(ADDRESS(ROW(),COLUMN()-1,4)) -> 57500
E178: TOTAL COMPRA ESTIMADA | F178: =SUM(Table13[MONTO TOTAL ESTIMADO]) -> 450000 | H178: =C167 -> Bienes | I178: =E167 -> No | J178: =D167 -> Compras Menores
A180: NOMBRE O REFERENCIA DE CONTRATACIÓN | B180: FINALIDAD DE LA CONTRATACIÓN | C180: OBJETO DE CONTRATACIÓN | D180: PROCEDIMIENTO DE SELECCIÓN | E180: DESTINADO A MIPYMES | F180: CÓDIGO SNIP
A181: Adquisición de materiales de Limpieza | B181: Adquisición de materiales de Limpieza | C181: Bienes | D181: Compras Menores | E181: No
A182: FECHA DE NECESSIDAD | B182: FECHA INICIO PROCESO DE COMPRA | C182: 2023-06-29 | D182: LUGAR DE EJECUCIÓN / ENTREGA | E182: Región
B183: TRIMESTRE | C183: =IF(C182="","",IF(AND(MONTH(C182)>=1,MONTH(C182)<=3),1,IF(AND(MONTH(C182)>=4,MONTH(C182)<=6),2,IF(AND(MONTH(C182)>=7,MONTH(C182)<=9),3,4)))) -> 2 | E183: Provincia
B184: FECHA PREVISTA ADJUDICACIÓN | C184: 2023-06-30 | E184: Municipio
B185: TRIMESTRE | C185: =IF(C184="","",IF(AND(MONTH(C184)>=1,MONTH(C184)<=3),1,IF(AND(MONTH(C184)>=4,MONTH(C184)<=6),2,IF(AND(MONTH(C184)>=7,MONTH(C184)<=9),3,4)))) -> 2 | E185: Distrito Municipal
A187: CÓDIGO CATÁLOGO | B187: ARTÍCULO | C187: UNIDAD DE MEDIDA | D187: CANTIDAD TOTAL ESTIMADA | E187: PRECIO UNITARIO ESTIMADO | F187: MONTO TOTAL ESTIMADO
A188: 47131604 | B188: =IFERROR(INDEX(UNSPSCDes,MATCH(INDIRECT(ADDRESS(ROW(),COLUMN()-1,4)),UNSPSCCode,0)),IF(INDIRECT(ADDRESS(ROW(),COLUMN()-1,4))="47131604","Escobas","")) -> Escobas | C188: =IFERROR(VLOOKUP("UD",'Informacion '!P:Q,2,FALSE),"") -> Unidad | D188: 150 | E188: 250 | F188: =INDIRECT(ADDRESS(ROW(),COLUMN()-2,4))*INDIRECT(ADDRESS(ROW(),COLUMN()-1,4)) -> 37500
A189: 47131829 | B189: =IFERROR(INDEX(UNSPSCDes,MATCH(INDIRECT(ADDRESS(ROW(),COLUMN()-1,4)),UNSPSCCode,0)),IF(INDIRECT(ADDRESS(ROW(),COLUMN()-1,4))="47131829","Limpiadores de baños","")) -> Limpiadores de baños | C189: =IFERROR(VLOOKUP("UD",'Informacion '!P:Q,2,FALSE),"") -> Unidad | D189: 150 | E189: 450 | F189: 67500
A190: 47131618 | B190: =IFERROR(INDEX(UNSPSCDes,MATCH(INDIRECT(ADDRESS(ROW(),COLUMN()-1,4)),UNSPSCCode,0)),IF(INDIRECT(ADDRESS(ROW(),COLUMN()-1,4))="47131618","Traperos húmedos","")) -> Traperos húmedos | C190: =IFERROR(VLOOKUP("UD",'Informacion '!P:Q,2,FALSE),"") -> Unidad | D190: 150 | E190: 400 | F190: 60000
A191: 47131803 | B191: =IFERROR(INDEX(UNSPSCDes,MATCH(INDIRECT(ADDRESS(ROW(),COLUMN()-1,4)),UNSPSCCode,0)),IF(INDIRECT(ADDRESS(ROW(),COLUMN()-1,4))="47131803","Desinfectantes para uso doméstico","")) -> Desinfectantes para uso doméstico | C191: =IFERROR(VLOOKUP("UD",'Informacion '!P:Q,2,FALSE),"") -> Unidad | D191: 150 | E191: 165 | F191: 24750
A192: 47131803 | B192: =IFERROR(INDEX(UNSPSCDes,MATCH(INDIRECT(ADDRESS(ROW(),COLUMN()-1,4)),UNSPSCCode,0)),IF(INDIRECT(ADDRESS(ROW(),COLUMN()-1,4))="47131803","Desinfectantes para uso doméstico","")) -> Desinfectantes para uso doméstico | C192: =IFERROR(VLOOKUP("UD",'Informacion '!P:Q,2,FALSE),"") -> Unidad | D192: 150 | E192: 950 | F192: 142500
A193: 14111703 | B193: =IFERROR(INDEX(UNSPSCDes,MATCH(INDIRECT(ADDRESS(ROW(),COLUMN()-1,4)),UNSPSCCode,0)),IF(INDIRECT(ADDRESS(ROW(),COLUMN()-1,4))="14111703","Toallas de papel","")) -> Toallas de papel | C193: =IFERROR(VLOOKUP("UD",'Informacion '!P:Q,2,FALSE),"") -> Unidad | D193: 100 | E193: 785 | F193: 78500
A194: 42281704 | B194: =IFERROR(INDEX(UNSPSCDes,MATCH(INDIRECT(ADDRESS(ROW(),COLUMN()-1,4)),UNSPSCCode,0)),IF(INDIRECT(ADDRESS(ROW(),COLUMN()-1,4))="42281704","Limpiadores o detergentes para instrumentos","")) -> Limpiadores o detergentes para instrumentos | C194: =IFERROR(VLOOKUP("UD",'Informacion '!P:Q,2,FALSE),"") -> Unidad | D194: 150 | E194: 190 | F194: 28500
A195: 12352104 | B195: =IFERROR(INDEX(UNSPSCDes,MATCH(INDIRECT(ADDRESS(ROW(),COLUMN()-1,4)),UNSPSCCode,0)),IF(INDIRECT(ADDRESS(ROW(),COLUMN()-1,4))="12352104","Alcoholes o sus sustitutos","")) -> Alcoholes o sus sustitutos | C195: =IFERROR(VLOOKUP("UD",'Informacion '!P:Q,2,FALSE),"") -> Unidad | D195: 20 | E195: 100 | F195: 2000
A196: 47131706 | B196: =IFERROR(INDEX(UNSPSCDes,MATCH(INDIRECT(ADDRESS(ROW(),COLUMN()-1,4)),UNSPSCCode,0)),IF(INDIRECT(ADDRESS(ROW(),COLUMN()-1,4))="47131706","Dispensadores de ambientadores","")) -> Dispensadores de ambientadores | C196: =IFERROR(VLOOKUP("UD",'Informacion '!P:Q,2,FALSE),"") -> Unidad | D196: 50 | E196: 700 | F196: 35000
A197: 47131602 | B197: =IFERROR(INDEX(UNSPSCDes,MATCH(INDIRECT(ADDRESS(ROW(),COLUMN()-1,4)),UNSPSCCode,0)),IF(INDIRECT(ADDRESS(ROW(),COLUMN()-1,4))="47131602","Almohadillas para restregar","")) -> Almohadillas para restregar | C197: =IFERROR(VLOOKUP("UD",'Informacion '!P:Q,2,FALSE),"") -> Unidad | D197: 100 | E197: 35 | F197: 3500
A198: 47131708 | B198: =IFERROR(INDEX(UNSPSCDes,MATCH(INDIRECT(ADDRESS(ROW(),COLUMN()-1,4)),UNSPSCCode,0)),IF(INDIRECT(ADDRESS(ROW(),COLUMN()-1,4))="47131708","Dispensador de papel de seda del cuarto de baño","")) -> Dispensador de papel de seda del cuarto de baño | C198: =IFERROR(VLOOKUP("UD",'Informacion '!P:Q,2,FALSE),"") -> Unidad | D198: 100 | E198: 90 | F198: 9000
A199: 47131827 | B199: =IFERROR(INDEX(UNSPSCDes,MATCH(INDIRECT(ADDRESS(ROW(),COLUMN()-1,4)),UNSPSCCode,0)),IF(INDIRECT(ADDRESS(ROW(),COLUMN()-1,4))="47131827","Limpiadores o removedores de manchas","")) -> Limpiadores o removedores de manchas | C199: =IFERROR(VLOOKUP("GAL",'Informacion '!P:Q,2,FALSE),"") -> Galón | D199: 50 | E199: 85 | F199: 4250
A200: 41121813 | B200: =IFERROR(INDEX(UNSPSCDes,MATCH(INDIRECT(ADDRESS(ROW(),COLUMN()-1,4)),UNSPSCCode,0)),IF(INDIRECT(ADDRESS(ROW(),COLUMN()-1,4))="41121813","Cubetas","")) -> Cubetas | C200: =IFERROR(VLOOKUP("UD",'Informacion '!P:Q,2,FALSE),"") -> Unidad | D200: 20 | E200: 250 | F200: 5000
A201: 47131803 | B201: =IFERROR(INDEX(UNSPSCDes,MATCH(INDIRECT(ADDRESS(ROW(),COLUMN()-1,4)),UNSPSCCode,0)),IF(INDIRECT(ADDRESS(ROW(),COLUMN()-1,4))="47131803","Desinfectantes para uso doméstico","")) -> Desinfectantes para uso doméstico | C201: =IFERROR(VLOOKUP("GAL",'Informacion '!P:Q,2,FALSE),"") -> Galón | D201: 25 | E201: 200 | F201: 5000
A202: 53131608 | B202: =IFERROR(INDEX(UNSPSCDes,MATCH(INDIRECT(ADDRESS(ROW(),COLUMN()-1,4)),UNSPSCCode,0)),IF(INDIRECT(ADDRESS(ROW(),COLUMN()-1,4))="53131608","Jabones","")) -> Jabones | C202: =IFERROR(VLOOKUP("GAL",'Informacion '!P:Q,2,FALSE),"") -> Galón | D202: 25 | E202: 400 | F202: 10000
A203: 47121701 | B203: =IFERROR(INDEX(UNSPSCDes,MATCH(INDIRECT(ADDRESS(ROW(),COLUMN()-1,4)),UNSPSCCode,0)),IF(INDIRECT(ADDRESS(ROW(),COLUMN()-1,4))="47121701","Bolsas de basura","")) -> Bolsas de basura | C203: =IFERROR(VLOOKUP("PAQ",'Informacion '!P:Q,2,FALSE),"") -> Paquete | D203: 30 | E203: 400 | F203: 12000
A204: 12352104 | B204: =IFERROR(INDEX(UNSPSCDes,MATCH(INDIRECT(ADDRESS(ROW(),COLUMN()-1,4)),UNSPSCCode,0)),IF(INDIRECT(ADDRESS(ROW(),COLUMN()-1,4))="12352104","Alcoholes o sus sustitutos","")) -> Alcoholes o sus sustitutos | C204: =IFERROR(VLOOKUP("GAL",'Informacion '!P:Q,2,FALSE),"") -> Galón | D204: 30 | E204: 1000 | F204: 30000
A205: 31211910 | B205: =IFERROR(INDEX(UNSPSCDes,MATCH(INDIRECT(ADDRESS(ROW(),COLUMN()-1,4)),UNSPSCCode,0)),IF(INDIRECT(ADDRESS(ROW(),COLUMN()-1,4))="31211910","Guantes para pintar","")) -> Guantes para pintar | C205: =IFERROR(VLOOKUP("UD",'Informacion '!P:Q,2,FALSE),"") -> Unidad | D205: 20 | E205: 60 | F205: 1200
A206: 47131810 | B206: =IFERROR(INDEX(UNSPSCDes,MATCH(INDIRECT(ADDRESS(ROW(),COLUMN()-1,4)),UNSPSCCode,0)),IF(INDIRECT(ADDRESS(ROW(),COLUMN()-1,4))="47131810","Productos para el lavaplatos","")) -> Productos para el lavaplatos | C206: =IFERROR(VLOOKUP("GAL",'Informacion '!P:Q,2,FALSE),"") -> Galón | D206: 10 | E206: 200 | F206: 2000
A207: 14111704 | B207: =IFERROR(INDEX(UNSPSCDes,MATCH(INDIRECT(ADDRESS(ROW(),COLUMN()-1,4)),UNSPSCCode,0)),IF(INDIRECT(ADDRESS(ROW(),COLUMN()-1,4))="14111704","Papel higiénico","")) -> Papel higiénico | C207: =IFERROR(VLOOKUP("PAQ",'Informacion '!P:Q,2,FALSE),"") -> Paquete | D207: 10 | E207: 800 | F207: 8000
A208: 47131830 | B208: =IFERROR(INDEX(UNSPSCDes,MATCH(INDIRECT(ADDRESS(ROW(),COLUMN()-1,4)),UNSPSCCode,0)),IF(INDIRECT(ADDRESS(ROW(),COLUMN()-1,4))="47131830","Limpiadores de muebles","")) -> Limpiadores de muebles | C208: =IFERROR(VLOOKUP("GAL",'Informacion '!P:Q,2,FALSE),"") -> Galón | D208: 10 | E208: 800 | F208: 8000
A209: 14111704 | B209: =IFERROR(INDEX(UNSPSCDes,MATCH(INDIRECT(ADDRESS(ROW(),COLUMN()-1,4)),UNSPSCCode,0)),IF(INDIRECT(ADDRESS(ROW(),COLUMN()-1,4))="14111704","Papel higiénico","")) -> Papel higiénico | C209: =IFERROR(VLOOKUP("PAQ",'Informacion '!P:Q,2,FALSE),"") -> Paquete | D209: 10 | E209: 600 | F209: 6000
A210: 14121504 | B210: =IFERROR(INDEX(UNSPSCDes,MATCH(INDIRECT(ADDRESS(ROW(),COLUMN()-1,4)),UNSPSCCode,0)),IF(INDIRECT(ADDRESS(ROW(),COLUMN()-1,4))="14121504","Papel de empaque","")) -> Papel de empaque | C210: =IFERROR(VLOOKUP("UD",'Informacion '!P:Q,2,FALSE),"") -> Unidad | D210: 10 | E210: 200 | F210: 2000
A211: 47131502 | B211: =IFERROR(INDEX(UNSPSCDes,MATCH(INDIRECT(ADDRESS(ROW(),COLUMN()-1,4)),UNSPSCCode,0)),IF(INDIRECT(ADDRESS(ROW(),COLUMN()-1,4))="47131502","Pañitos o toallas para limpiar","")) -> Pañitos o toallas para limpiar | C211: =IFERROR(VLOOKUP("PAQ",'Informacion '!P:Q,2,FALSE),"") -> Paquete | D211: 15 | E211: 1800 | F211: 27000
A212: 53131608 | B212: =IFERROR(INDEX(UNSPSCDes,MATCH(INDIRECT(ADDRESS(ROW(),COLUMN()-1,4)),UNSPSCCode,0)),IF(INDIRECT(ADDRESS(ROW(),COLUMN()-1,4))="53131608","Jabones","")) -> Jabones | C212: =IFERROR(VLOOKUP("UD",'Informacion '!P:Q,2,FALSE),"") -> Unidad | D212: 15 | E212: 1600 | F212: 24000
A213: 14111705 | B213: =IFERROR(INDEX(UNSPSCDes,MATCH(INDIRECT(ADDRESS(ROW(),COLUMN()-1,4)),UNSPSCCode,0)),IF(INDIRECT(ADDRESS(ROW(),COLUMN()-1,4))="14111705","Servilletas de papel","")) -> Servilletas de papel | C213: =IFERROR(VLOOKUP("UD",'Informacion '!P:Q,2,FALSE),"") -> Unidad | D213: 10 | E213: 1900 | F213: 19000
A214: 25111903 | B214: =IFERROR(INDEX(UNSPSCDes,MATCH(INDIRECT(ADDRESS(ROW(),COLUMN()-1,4)),UNSPSCCode,0)),IF(INDIRECT(ADDRESS(ROW(),COLUMN()-1,4))="25111903","Velas","")) -> Velas | C214: =IFERROR(VLOOKUP("UD",'Informacion '!P:Q,2,FALSE),"") -> Unidad | D214: 20 | E214: 200 | F214: 4000
A215: 14111705 | B215: =IFERROR(INDEX(UNSPSCDes,MATCH(INDIRECT(ADDRESS(ROW(),COLUMN()-1,4)),UNSPSCCode,0)),IF(INDIRECT(ADDRESS(ROW(),COLUMN()-1,4))="14111705","Servilletas de papel","")) -> Servilletas de papel | C215: =IFERROR(VLOOKUP("UD",'Informacion '!P:Q,2,FALSE),"") -> Unidad | D215: 15 | E215: 2200 | F215: 33000
A216: 24101510 | B216: =IFERROR(INDEX(UNSPSCDes,MATCH(INDIRECT(ADDRESS(ROW(),COLUMN()-1,4)),UNSPSCCode,0)),IF(INDIRECT(ADDRESS(ROW(),COLUMN()-1,4))="24101510","Contenedor de basura plástico","")) -> Contenedor de basura plástico | C216: =IFERROR(VLOOKUP("UD",'Informacion '!P:Q,2,FALSE),"") -> Unidad | D216: 15 | E216: 300 | F216: 4500
... 461 more rows

Sheet Informacion (hidden)
A1: REGIONES | B1: PROVINCIAS | D1: MUNICIPIOS | G1: DISTRITOS MUNICIPALES
A2: REGION | B2: REGION | C2: PROVINCIA | D2: REGION | E2: PROVINCIA | F2: MUNICIPIO | G2: REGION | H2: PROVINCIA | I2: MUNICIPIO | J2: DISTRITO MUNICIPAL | L2: Procedimientos | N2: Destinado a MIPYME? | P2: Un | Q2: Desc. | S2: Objeto de Contratación | U2: Etiquetas necesarias
A3: CIBAO NORTE | B3: CIBAO NORTE | C3: Santiago | D3: CIBAO NORTE | E3: Santiago | F3: Santiago de los Caballeros | G3: CIBAO NORDESTE | H3: Duarte | I3: Arenoso | J3: Arenoso | L3: Comparacion de Precios | N3: Sí | P3: CAJ | Q3: Caja | S3: Bienes | U3: TOTAL COMPRA ESTIMADA
A4: CIBAO SUR | B4: CIBAO NORTE | C4: Puerto Plata | D4: CIBAO NORTE | E4: Santiago | F4: Sabana Iglesia | G4: CIBAO NORDESTE | H4: Duarte | I4: Arenoso | J4: El Aguacate | L4: Compras Menores | N4: MIPYME Mujeres | P4: CM | Q4: Centímetro | S4: Servicios
A5: CIBAO NORDESTE | B5: CIBAO NORTE | C5: Espaillat | D5: CIBAO NORTE | E5: Santiago | F5: Villa Bisonó (Navarrete) | G5: CIBAO NORDESTE | H5: Duarte | I5: Arenoso | J5: Las Coles | L5: Compras por debajo del Umbral | N5: No | P5: CM2 | Q5: Centímetro Cuadrado | S5: Servicios: Consultorías
A6: CIBAO NOROESTE | B6: CIBAO SUR | C6: Concepción de La Vega | D6: CIBAO NORTE | E6: Santiago | F6: Jánico | G6: CIBAO NORDESTE | H6: Duarte | I6: Castillo | J6: Castillo | L6: Excepción - Bienes o servicios con exclusividad | P6: CT | Q6: Ciento | S6: Servicios: Consultoría basada en la calidad de los servicios
A7: VALDESIA | B7: CIBAO SUR | C7: Monseñor Nouel | D7: CIBAO NORTE | E7: Santiago | F7: Licey al Medio | G7: CIBAO NORDESTE | H7: Duarte | I7: Hostos | J7: Hostos | L7: Excepción - Construcción, instalación o adquisición de oficinas para el servicio exterior | P7: DEC | Q7: Decena | S7: Obras
A8: ENRIQUILLO | B8: CIBAO SUR | C8: Sánchez Ramírez | D8: CIBAO NORTE | E8: Santiago | F8: San José de las Matas | G8: CIBAO NORDESTE | H8: Duarte | I8: Hostos | J8: Sabana Grande de Hostos | L8: Excepción - Contratación de publicidad a través de medios de comunicación social | P8: DM | Q8: Decímetro
A9: EL VALLE | B9: CIBAO NORDESTE | C9: Duarte | D9: CIBAO NORTE | E9: Santiago | F9: Tamboril | G9: CIBAO NORDESTE | H9: Duarte | I9: Las Guáranas | J9: Las Guáranas | L9: Excepción - Obras científicas, técnicas, artísticas, o restauración de monumentos históricos | P9: DÍA | Q9: Día
A10: YUMA | B10: CIBAO NORDESTE | C10: Hermanas Mirabal | D10: CIBAO NORTE | E10: Santiago | F10: Villa González | G10: CIBAO NORDESTE | H10: Duarte | I10: Pimentel | J10: Pimentel | L10: Excepción - Proveedor Único | P10: DOC | Q10: Docena
A11: HIGUAMO | B11: CIBAO NORDESTE | C11: María Trinidad Sánchez | D11: CIBAO NORTE | E11: Santiago | F11: Puñal | G11: CIBAO NORDESTE | H11: Duarte | I11: San Fco. de Macorís | J11: Cenoví | L11: Excepción - Rescisión de contratos cuya terminación no exceda el 40% del monto total del proyecto, obra o servicio | P11: GAL | Q11: Galón
A12: OZAMA O METROPOLITANA | B12: CIBAO NORDESTE | C12: Samaná | D12: CIBAO NORTE | E12: Puerto Plata | F12: San Felipe de Puerto Plata | G12: CIBAO NORDESTE | H12: Duarte | I12: San Fco. de Macorís | J12: Don Antonio Guzmán Fernández | L12: Excepción - Resolución 15-08 sobre compra y contratación de pasaje aéreo, combustible y reparación de vehículos de motor | P12: G | Q12: Gramo
B13: CIBAO NOROESTE | C13: Valverde | D13: CIBAO NORTE | E13: Puerto Plata | F13: Altamira | G13: CIBAO NORDESTE | H13: Duarte | I13: San Fco. de Macorís | J13: Jaya | L13: Licitacion Publica | P13: H | Q13: Hora
B14: CIBAO NOROESTE | C14: Santiago Rodriguez | D14: CIBAO NORTE | E14: Puerto Plata | F14: Guananico | G14: CIBAO NORDESTE | H14: Duarte | I14: San Fco. de Macorís | J14: La Peña | L14: Licitacion Publica Internacional | P14: H/H | Q14: Hora Hombre
B15: CIBAO NOROESTE | C15: Montecristi | D15: CIBAO NORTE | E15: Puerto Plata | F15: Imbert | G15: CIBAO NORDESTE | H15: Duarte | I15: San Fco. de Macorís | J15: San Fco. de Macorís | L15: Licitacion Restringida | P15: KG | Q15: Kilogramo
B16: CIBAO NOROESTE | C16: Dajabón | D16: CIBAO NORTE | E16: Puerto Plata | F16: Los Hidalgos | G16: CIBAO NORDESTE | H16: Duarte | I16: Villa Riva | J16: Agua Santa del Yuna | L16: Sorteo de Obras | P16: KM | Q16: Kilómetro
B17: VALDESIA | C17: San Cristóbal | D17: CIBAO NORTE | E17: Puerto Plata | F17: Luperón | G17: CIBAO NORDESTE | H17: Duarte | I17: Villa Riva | J17: Barraquito | L17: Subasta Inversa | P17: KM2 | Q17: Kilómetro cuadrado
B18: VALDESIA | C18: Peravia | D18: CIBAO NORTE | E18: Puerto Plata | F18: Sosúa | G18: CIBAO NORDESTE | H18: Duarte | I18: Villa Riva | J18: Cristo Rey de Guaraguao | P18: LB | Q18: Libra
B19: VALDESIA | C19: San José de Ocoa | D19: CIBAO NORTE | E19: Puerto Plata | F19: Villa Isabela | G19: CIBAO NORDESTE | H19: Duarte | I19: Villa Riva | J19: Las Táranas | P19: L | Q19: Litro
B20: VALDESIA | C20: Azua | D20: CIBAO NORTE | E20: Puerto Plata | F20: Villa Montellano | G20: CIBAO NORDESTE | H20: Duarte | I20: Villa Riva | J20: Villa Riva | P20: MES | Q20: Mes
B21: ENRIQUILLO | C21: Barahona | D21: CIBAO NORTE | E21: Espaillat | F21: Moca | G21: CIBAO NORDESTE | H21: Hermanas Mirabal | I21: Salcedo | J21: Jamao Afuera | P21: M | Q21: Metro
B22: ENRIQUILLO | C22: Bahoruco | D22: CIBAO NORTE | E22: Espaillat | F22: Cayetano Germosén | G22: CIBAO NORDESTE | H22: Hermanas Mirabal | I22: Salcedo | J22: Salcedo | P22: M2 | Q22: Metro cuadrado
B23: ENRIQUILLO | C23: Pedernales | D23: CIBAO NORTE | E23: Espaillat | F23: Gaspar Hernández | G23: CIBAO NORDESTE | H23: Hermanas Mirabal | I23: Tenares | J23: Blanco | P23: M3 | Q23: Metro cúbico
B24: ENRIQUILLO | C24: Independencia | D24: CIBAO NORTE | E24: Espaillat | F24: Jamao al Norte | G24: CIBAO NORDESTE | H24: Hermanas Mirabal | I24: Tenares | J24: Tenares | P24: MG | Q24: Miligramo
B25: EL VALLE | C25: San Juan | D25: CIBAO SUR | E25: Concepción de La Vega | F25: La Vega | G25: CIBAO NORDESTE | H25: Hermanas Mirabal | I25: Villa Tapia | J25: Villa Tapia | P25: MM | Q25: Milímetro
B26: EL VALLE | C26: Elías Piña | D26: CIBAO SUR | E26: Concepción de La Vega | F26: Constanza | G26: CIBAO NORDESTE | H26: María Trinidad Sánchez | I26: Cabrera | J26: Arroyo Salado | P26: MI | Q26: Milla
B27: YUMA | C27: La Romana | D27: CIBAO SUR | E27: Concepción de La Vega | F27: Jarabacoa | G27: CIBAO NORDESTE | H27: María Trinidad Sánchez | I27: Cabrera | J27: Cabrera | P27: MIL | Q27: Millar
B28: YUMA | C28: La Altagracia | D28: CIBAO SUR | E28: Concepción de La Vega | F28: Jima Abajo | G28: CIBAO NORDESTE | H28: María Trinidad Sánchez | I28: Cabrera | J28: La Entrada | P28: OZ | Q28: Onza
B29: YUMA | C29: El Seibo | D29: CIBAO SUR | E29: Monseñor Nouel | F29: Bonao | G29: CIBAO NORDESTE | H29: María Trinidad Sánchez | I29: El Factor | J29: El Factor | P29: PAQ | Q29: Paquete
B30: HIGUAMO | C30: San Pedro de Macorís | D30: CIBAO SUR | E30: Monseñor Nouel | F30: Maimón | G30: CIBAO NORDESTE | H30: María Trinidad Sánchez | I30: El Factor | J30: El Pozo | P30: FT | Q30: Pie
B31: HIGUAMO | C31: Hato Mayor | D31: CIBAO SUR | E31: Monseñor Nouel | F31: Piedra Blanca | G31: CIBAO NORDESTE | H31: María Trinidad Sánchez | I31: Nagua | J31: Arroyo al Medio | P31: FT2 | Q31: Pie cuadrado
B32: HIGUAMO | C32: Monte Plata | D32: CIBAO SUR | E32: Sánchez Ramírez | F32: Cotuí | G32: CIBAO NORDESTE | H32: María Trinidad Sánchez | I32: Nagua | J32: Las Gordas | P32: FT3 | Q32: Pie cúbico
B33: OZAMA O METROPOLITANA | C33: Distrito Nacional | D33: CIBAO SUR | E33: Sánchez Ramírez | F33: Cevicos | G33: CIBAO NORDESTE | H33: María Trinidad Sánchez | I33: Nagua | J33: Nagua | P33: IN | Q33: Pulgada
B34: OZAMA O METROPOLITANA | C34: Santo Domingo | D34: CIBAO SUR | E34: Sánchez Ramírez | F34: Fantino | G34: CIBAO NORDESTE | H34: María Trinidad Sánchez | I34: Nagua | J34: San José de Matanzas | P34: PULG | Q34: Pulgada
D35: CIBAO SUR | E35: Sánchez Ramírez | F35: La Mata | G35: CIBAO NORDESTE | H35: María Trinidad Sánchez | I35: Río San Juan | J35: Río San Juan | P35: IN2 | Q35: Pulgada cuadrada
D36: CIBAO NORDESTE | E36: Duarte | F36: San Fco. de Macorís | G36: CIBAO NORDESTE | H36: Samaná | I36: Las Terrenas | J36: Las Terrenas | P36: 500UD | Q36: Quinientas unidades
D37: CIBAO NORDESTE | E37: Duarte | F37: Arenoso | G37: CIBAO NORDESTE | H37: Samaná | I37: Sánchez | J37: Sánchez | P37: Q | Q37: Quintal
D38: CIBAO NORDESTE | E38: Duarte | F38: Castillo | G38: CIBAO NORDESTE | H38: Samaná | I38: Santa Bárbara de Samaná | J38: Arroyo Barril | P38: RESMA | Q38: Resma
D39: CIBAO NORDESTE | E39: Duarte | F39: Hostos | G39: CIBAO NORDESTE | H39: Samaná | I39: Santa Bárbara de Samaná | J39: El Limón | P39: SEM | Q39: Semana
D40: CIBAO NORDESTE | E40: Duarte | F40: Pimentel | G40: CIBAO NORDESTE | H40: Samaná | I40: Santa Bárbara de Samaná | J40: Las Galeras | P40: TON | Q40: Tonelada
D41: CIBAO NORDESTE | E41: Duarte | F41: Villa Riva | G41: CIBAO NORDESTE | H41: Samaná | I41: Santa Bárbara de Samaná | J41: Santa Bárbara de Samaná | P41: UD | Q41: Unidad
D42: CIBAO NORDESTE | E42: Duarte | F42: Las Guáranas | G42: CIBAO NOROESTE | H42: Dajabón | I42: Dajabón | J42: Cañongo | P42: YD | Q42: Yarda
D43: CIBAO NORDESTE | E43: Hermanas Mirabal | F43: Salcedo | G43: CIBAO NOROESTE | H43: Dajabón | I43: Dajabón | J43: Dajabón | P43: YD2 | Q43: Yarda cuadrada
D44: CIBAO NORDESTE | E44: Hermanas Mirabal | F44: Tenares | G44: CIBAO NOROESTE | H44: Dajabón | I44: El Pino | J44: El Pino
D45: CIBAO NORDESTE | E45: Hermanas Mirabal | F45: Villa Tapia | G45: CIBAO NOROESTE | H45: Dajabón | I45: El Pino | J45: Manuel Bueno
D46: CIBAO NORDESTE | E46: María Trinidad Sánchez | F46: Nagua | G46: CIBAO NOROESTE | H46: Dajabón | I46: Loma de Cabrera | J46: Capotillo
D47: CIBAO NORDESTE | E47: María Trinidad Sánchez | F47: Cabrera | G47: CIBAO NOROESTE | H47: Dajabón | I47: Loma de Cabrera | J47: Loma de Cabrera
D48: CIBAO NORDESTE | E48: María Trinidad Sánchez | F48: El Factor | G48: CIBAO NOROESTE | H48: Dajabón | I48: Loma de Cabrera | J48: Santiago de la Cruz
D49: CIBAO NORDESTE | E49: María Trinidad Sánchez | F49: Río San Juan | G49: CIBAO NOROESTE | H49: Dajabón | I49: Partido | J49: Partido
D50: CIBAO NORDESTE | E50: Samaná | F50: Santa Bárbara de Samaná | G50: CIBAO NOROESTE | H50: Dajabón | I50: Restauración | J50: Restauración
D51: CIBAO NORDESTE | E51: Samaná | F51: Sánchez | G51: CIBAO NOROESTE | H51: Montecristi | I51: Castañuelas | J51: Castañuelas
D52: CIBAO NORDESTE | E52: Samaná | F52: Las Terrenas | G52: CIBAO NOROESTE | H52: Montecristi | I52: Castañuelas | J52: Palo Verde
D53: CIBAO NOROESTE | E53: Valverde | F53: Santa Cruz de Mao | G53: CIBAO NOROESTE | H53: Montecristi | I53: Guayubín | J53: Cana Chapetón
D54: CIBAO NOROESTE | E54: Valverde | F54: Esperanza | G54: CIBAO NOROESTE | H54: Montecristi | I54: Guayubín | J54: Guayubín
D55: CIBAO NOROESTE | E55: Valverde | F55: Laguna Salada | G55: CIBAO NOROESTE | H55: Montecristi | I55: Guayubín | J55: Hatillo Palma
D56: CIBAO NOROESTE | E56: Santiago Rodriguez | F56: San Ignacio de Sabaneta | G56: CIBAO NOROESTE | H56: Montecristi | I56: Guayubín | J56: Villa Elisa
D57: CIBAO NOROESTE | E57: Santiago Rodriguez | F57: Villa los Almácigos | G57: CIBAO NOROESTE | H57: Montecristi | I57: Las Matas de Santa Cruz | J57: Las Matas de Santa Cruz
D58: CIBAO NOROESTE | E58: Santiago Rodriguez | F58: Monción | G58: CIBAO NOROESTE | H58: Montecristi | I58: Pepillo Salcedo | J58: Pepillo Salcedo
D59: CIBAO NOROESTE | E59: Montecristi | F59: San Fernando de Montecristi | G59: CIBAO NOROESTE | H59: Montecristi | I59: San Fernando de Montecristi | J59: San Fernando de Montecristi
D60: CIBAO NOROESTE | E60: Montecristi | F60: Castañuelas | G60: CIBAO NOROESTE | H60: Montecristi | I60: Villa Vásquez | J60: Villa Vásquez
D61: CIBAO NOROESTE | E61: Montecristi | F61: Guayubín | G61: CIBAO NOROESTE | H61: Santiago Rodriguez | I61: Monción | J61: Monción
D62: CIBAO NOROESTE | E62: Montecristi | F62: Las Matas de Santa Cruz | G62: CIBAO NOROESTE | H62: Santiago Rodriguez | I62: San Ignacio de Sabaneta | J62: San Ignacio de Sabaneta
D63: CIBAO NOROESTE | E63: Montecristi | F63: Pepillo Salcedo | G63: CIBAO NOROESTE | H63: Santiago Rodriguez | I63: Villa los Almácigos | J63: Villa los Almácigos
D64: CIBAO NOROESTE | E64: Montecristi | F64: Villa Vásquez | G64: CIBAO NOROESTE | H64: Valverde | I64: Esperanza | J64: Boca de Mao
D65: CIBAO NOROESTE | E65: Dajabón | F65: Dajabón | G65: CIBAO NOROESTE | H65: Valverde | I65: Esperanza | J65: Esperanza
D66: CIBAO NOROESTE | E66: Dajabón | F66: Loma de Cabrera | G66: CIBAO NOROESTE | H66: Valverde | I66: Esperanza | J66: Jicomé
D67: CIBAO NOROESTE | E67: Dajabón | F67: Restauración | G67: CIBAO NOROESTE | H67: Valverde | I67: Esperanza | J67: Maizal
D68: CIBAO NOROESTE | E68: Dajabón | F68: Partido | G68: CIBAO NOROESTE | H68: Valverde | I68: Esperanza | J68: Paradero
D69: CIBAO NOROESTE | E69: Dajabón | F69: El Pino | G69: CIBAO NOROESTE | H69: Valverde | I69: Laguna Salada | J69: Cruce de Guayacanes
D70: VALDESIA | E70: San Cristóbal | F70: San Cristóbal | G70: CIBAO NOROESTE | H70: Valverde | I70: Laguna Salada | J70: Jaibón (Laguna Salada)
D71: VALDESIA | E71: San Cristóbal | F71: Bajos de Haina | G71: CIBAO NOROESTE | H71: Valverde | I71: Laguna Salada | J71: La Caya
D72: VALDESIA | E72: San Cristóbal | F72: Los Cacaos | G72: CIBAO NOROESTE | H72: Valverde | I72: Laguna Salada | J72: Laguna Salada
D73: VALDESIA | E73: San Cristóbal | F73: Cambita Garabitos | G73: CIBAO NOROESTE | H73: Valverde | I73: Santa Cruz de Mao | J73: Ámina
D74: VALDESIA | E74: San Cristóbal | F74: San Gregorio de Nigua | G74: CIBAO NOROESTE | H74: Valverde | I74: Santa Cruz de Mao | J74: Guatapanal
D75: VALDESIA | E75: San Cristóbal | F75: Sabana Grande de Palenque | G75: CIBAO NOROESTE | H75: Valverde | I75: Santa Cruz de Mao | J75: Jaibón (Pueblo Nuevo)
D76: VALDESIA | E76: San Cristóbal | F76: Yaguate | G76: CIBAO NOROESTE | H76: Valverde | I76: Santa Cruz de Mao | J76: Santa Cruz de Mao
D77: VALDESIA | E77: San Cristóbal | F77: Villa Altagracia | G77: CIBAO NORTE | H77: Espaillat | I77: Cayetano Germosén | J77: Cayetano Germosén
D78: VALDESIA | E78: Peravia | F78: Baní | G78: CIBAO NORTE | H78: Espaillat | I78: Gaspar Hernández | J78: Gaspar Hernández
D79: VALDESIA | E79: Peravia | F79: Nizao | G79: CIBAO NORTE | H79: Espaillat | I79: Gaspar Hernández | J79: Joba Arriba
D80: VALDESIA | E80: San José de Ocoa | F80: San José de Ocoa | G80: CIBAO NORTE | H80: Espaillat | I80: Gaspar Hernández | J80: Veragua
D81: VALDESIA | E81: San José de Ocoa | F81: Sabana Larga | G81: CIBAO NORTE | H81: Espaillat | I81: Gaspar Hernández | J81: Villa Magante
D82: VALDESIA | E82: San José de Ocoa | F82: Rancho Arriba | G82: CIBAO NORTE | H82: Espaillat | I82: Jamao al Norte | J82: Jamao al Norte
D83: VALDESIA | E83: Azua | F83: Azua de Compostela | G83: CIBAO NORTE | H83: Espaillat | I83: Moca | J83: Canca la Reina
D84: VALDESIA | E84: Azua | F84: Guayabal | G84: CIBAO NORTE | H84: Espaillat | I84: Moca | J84: El Higuerito
D85: VALDESIA | E85: Azua | F85: Las Charcas | G85: CIBAO NORTE | H85: Espaillat | I85: Moca | J85: José Contreras
D86: VALDESIA | E86: Azua | F86: Las Yayas de Viajama | G86: CIBAO NORTE | H86: Espaillat | I86: Moca | J86: Juan López
D87: VALDESIA | E87: Azua | F87: Padre Las Casas | G87: CIBAO NORTE | H87: Espaillat | I87: Moca | J87: La Ortega
D88: VALDESIA | E88: Azua | F88: Peralta | G88: CIBAO NORTE | H88: Espaillat | I88: Moca | J88: Las Lagunas Abajo
D89: VALDESIA | E89: Azua | F89: Sabana Yegua | G89: CIBAO NORTE | H89: Espaillat | I89: Moca | J89: Moca
D90: VALDESIA | E90: Azua | F90: Tábara Arriba | G90: CIBAO NORTE | H90: Espaillat | I90: Moca | J90: Monte de la Jagua
D91: VALDESIA | E91: Azua | F91: Estebanía | G91: CIBAO NORTE | H91: Espaillat | I91: Moca | J91: San Víctor
D92: VALDESIA | E92: Azua | F92: Pueblo Viejo | G92: CIBAO NORTE | H92: Puerto Plata | I92: Altamira | J92: Altamira
D93: ENRIQUILLO | E93: Barahona | F93: Santa Cruz de Barahona | G93: CIBAO NORTE | H93: Puerto Plata | I93: Altamira | J93: Río Grande
D94: ENRIQUILLO | E94: Barahona | F94: Cabral | G94: CIBAO NORTE | H94: Puerto Plata | I94: Guananico | J94: Guananico
D95: ENRIQUILLO | E95: Barahona | F95: Enriquillo | G95: CIBAO NORTE | H95: Puerto Plata | I95: Imbert | J95: Imbert
D96: ENRIQUILLO | E96: Barahona | F96: Las Salinas | G96: CIBAO NORTE | H96: Puerto Plata | I96: Los Hidalgos | J96: Los Hidalgos
D97: ENRIQUILLO | E97: Barahona | F97: Paraíso | G97: CIBAO NORTE | H97: Puerto Plata | I97: Los Hidalgos | J97: Navas
D98: ENRIQUILLO | E98: Barahona | F98: Polo | G98: CIBAO NORTE | H98: Puerto Plata | I98: Luperón | J98: Belloso
D99: ENRIQUILLO | E99: Barahona | F99: Vicente Noble | G99: CIBAO NORTE | H99: Puerto Plata | I99: Luperón | J99: El Estrecho de Luperón Omar Bross
D100: ENRIQUILLO | E100: Barahona | F100: El Peñón | G100: CIBAO NORTE | H100: Puerto Plata | I100: Luperón | J100: La Isabela
D101: ENRIQUILLO | E101: Barahona | F101: Fundación | G101: CIBAO NORTE | H101: Puerto Plata | I101: Luperón | J101: Luperón
D102: ENRIQUILLO | E102: Barahona | F102: La Ciénaga | G102: CIBAO NORTE | H102: Puerto Plata | I102: San Felipe de Puerto Plata | J102: Maimón
D103: ENRIQUILLO | E103: Barahona | F103: Jaquimeyes | G103: CIBAO NORTE | H103: Puerto Plata | I103: San Felipe de Puerto Plata | J103: San Felipe de Puerto Plata
D104: ENRIQUILLO | E104: Bahoruco | F104: Neyba | G104: CIBAO NORTE | H104: Puerto Plata | I104: San Felipe de Puerto Plata | J104: Yásica Arriba
D105: ENRIQUILLO | E105: Bahoruco | F105: Galván | G105: CIBAO NORTE | H105: Puerto Plata | I105: Sosúa | J105: Cabarete
D106: ENRIQUILLO | E106: Bahoruco | F106: Los Ríos | G106: CIBAO NORTE | H106: Puerto Plata | I106: Sosúa | J106: Sabaneta de Yásica
D107: ENRIQUILLO | E107: Bahoruco | F107: Tamayo | G107: CIBAO NORTE | H107: Puerto Plata | I107: Sosúa | J107: Sosúa
D108: ENRIQUILLO | E108: Bahoruco | F108: Villa Jaragua | G108: CIBAO NORTE | H108: Puerto Plata | I108: Villa Isabela | J108: Estero Hondo
D109: ENRIQUILLO | E109: Pedernales | F109: Pedernales | G109: CIBAO NORTE | H109: Puerto Plata | I109: Villa Isabela | J109: Gualete
D110: ENRIQUILLO | E110: Pedernales | F110: Oviedo | G110: CIBAO NORTE | H110: Puerto Plata | I110: Villa Isabela | J110: La Jaiba
D111: ENRIQUILLO | E111: Independencia | F111: Jimaní | G111: CIBAO NORTE | H111: Puerto Plata | I111: Villa Isabela | J111: Villa Isabela
D112: ENRIQUILLO | E112: Independencia | F112: Duvergé | G112: CIBAO NORTE | H112: Puerto Plata | I112: Villa Montellano | J112: Villa Montellano
D113: ENRIQUILLO | E113: Independencia | F113: La Descubierta | G113: CIBAO NORTE | H113: Santiago | I113: Jánico | J113: El Caimito
D114: ENRIQUILLO | E114: Independencia | F114: Mella | G114: CIBAO NORTE | H114: Santiago | I114: Jánico | J114: Jánico
D115: ENRIQUILLO | E115: Independencia | F115: Postrer Río | G115: CIBAO NORTE | H115: Santiago | I115: Jánico | J115: Juncalito
D116: ENRIQUILLO | E116: Independencia | F116: Cristóbal | G116: CIBAO NORTE | H116: Santiago | I116: Licey al Medio | J116: Las Palomas
D117: EL VALLE | E117: San Juan | F117: San Juan de la Maguana | G117: CIBAO NORTE | H117: Santiago | I117: Licey al Medio | J117: Licey al Medio
D118: EL VALLE | E118: San Juan | F118: Bohechio | G118: CIBAO NORTE | H118: Santiago | I118: Puñal | J118: Canabacoa
D119: EL VALLE | E119: San Juan | F119: El Cercado | G119: CIBAO NORTE | H119: Santiago | I119: Puñal | J119: Guayabal
D120: EL VALLE | E120: San Juan | F120: Juan de Herrera | G120: CIBAO NORTE | H120: Santiago | I120: Puñal | J120: Puñal
D121: EL VALLE | E121: San Juan | F121: Las Matas de Farfán | G121: CIBAO NORTE | H121: Santiago | I121: Sabana Iglesia | J121: Sabana Iglesia
D122: EL VALLE | E122: San Juan | F122: Vallejuelo | G122: CIBAO NORTE | H122: Santiago | I122: San José de las Matas | J122: El Rubio
D123: EL VALLE | E123: Elías Piña | F123: Comendador | G123: CIBAO NORTE | H123: Santiago | I123: San José de las Matas | J123: La Cuesta
D124: EL VALLE | E124: Elías Piña | F124: Bánica | G124: CIBAO NORTE | H124: Santiago | I124: San José de las Matas | J124: Las Placetas
D125: EL VALLE | E125: Elías Piña | F125: El Llano | G125: CIBAO NORTE | H125: Santiago | I125: San José de las Matas | J125: San José de las Matas
D126: EL VALLE | E126: Elías Piña | F126: Hondo Valle | G126: CIBAO NORTE | H126: Santiago | I126: Santiago de los Caballeros | J126: Baitoa
D127: EL VALLE | E127: Elías Piña | F127: Pedro Santana | G127: CIBAO NORTE | H127: Santiago | I127: Santiago de los Caballeros | J127: Hato del Yaque
D128: EL VALLE | E128: Elías Piña | F128: Juan Santiago | G128: CIBAO NORTE | H128: Santiago | I128: Santiago de los Caballeros | J128: La Canela
D129: YUMA | E129: La Romana | F129: La Romana | G129: CIBAO NORTE | H129: Santiago | I129: Santiago de los Caballeros | J129: Pedro García
D130: YUMA | E130: La Romana | F130: Guaymate | G130: CIBAO NORTE | H130: Santiago | I130: Santiago de los Caballeros | J130: San Francisco de Jacagua
D131: YUMA | E131: La Romana | F131: Villa Hermosa | G131: CIBAO NORTE | H131: Santiago | I131: Santiago de los Caballeros | J131: Santiago de los Caballeros
D132: YUMA | E132: La Altagracia | F132: Salvaléon de Higüey | G132: CIBAO NORTE | H132: Santiago | I132: Tamboril | J132: Canca la Piedra
D133: YUMA | E133: La Altagracia | F133: San Rafael del Yuma | G133: CIBAO NORTE | H133: Santiago | I133: Tamboril | J133: Tamboril
D134: YUMA | E134: El Seibo | F134: Santa Cruz del Seibo | G134: CIBAO NORTE | H134: Santiago | I134: Villa Bisonó (Navarrete) | J134: Villa Bisonó (Navarrete)
D135: YUMA | E135: El Seibo | F135: Miches | G135: CIBAO NORTE | H135: Santiago | I135: Villa González | J135: El Limón
D136: HIGUAMO | E136: San Pedro de Macorís | F136: San Pedro de Macorís | G136: CIBAO NORTE | H136: Santiago | I136: Villa González | J136: Palmar Arriba
D137: HIGUAMO | E137: San Pedro de Macorís | F137: San José de los Llanos | G137: CIBAO NORTE | H137: Santiago | I137: Villa González | J137: Villa González
D138: HIGUAMO | E138: San Pedro de Macorís | F138: Ramón Santana | G138: CIBAO SUR | H138: Concepción de La Vega | I138: Constanza | J138: Constanza
D139: HIGUAMO | E139: San Pedro de Macorís | F139: Consuelo | G139: CIBAO SUR | H139: Concepción de La Vega | I139: Constanza | J139: La Sabina
D140: HIGUAMO | E140: San Pedro de Macorís | F140: Quisqueya | G140: CIBAO SUR | H140: Concepción de La Vega | I140: Constanza | J140: Tireo Arriba
D141: HIGUAMO | E141: San Pedro de Macorís | F141: Guayacanes | G141: CIBAO SUR | H141: Concepción de La Vega | I141: Jarabacoa | J141: Buena Vista
D142: HIGUAMO | E142: Hato Mayor | F142: Hato Mayor del Rey | G142: CIBAO SUR | H142: Concepción de La Vega | I142: Jarabacoa | J142: Jarabacoa
D143: HIGUAMO | E143: Hato Mayor | F143: Sabana de la Mar | G143: CIBAO SUR | H143: Concepción de La Vega | I143: Jarabacoa | J143: Manabao
D144: HIGUAMO | E144: Hato Mayor | F144: El Valle | G144: CIBAO SUR | H144: Concepción de La Vega | I144: Jima Abajo | J144: Jima Abajo
D145: HIGUAMO | E145: Monte Plata | F145: Monte Plata | G145: CIBAO SUR | H145: Concepción de La Vega | I145: Jima Abajo | J145: Rincón
D146: HIGUAMO | E146: Monte Plata | F146: Bayaguana | G146: CIBAO SUR | H146: Concepción de La Vega | I146: La Vega | J146: El Ranchito
D147: HIGUAMO | E147: Monte Plata | F147: Sabana Grande de Boyá | G147: CIBAO SUR | H147: Concepción de La Vega | I147: La Vega | J147: La Vega
D148: HIGUAMO | E148: Monte Plata | F148: Yamasá | G148: CIBAO SUR | H148: Concepción de La Vega | I148: La Vega | J148: Río Verde Arriba
D149: HIGUAMO | E149: Monte Plata | F149: Peralvillo | G149: CIBAO SUR | H149: Monseñor Nouel | I149: Bonao | J149: Arroyo Toro Masipedro
D150: OZAMA O METROPOLITANA | E150: Distrito Nacional | F150: Distrito Nacional | G150: CIBAO SUR | H150: Monseñor Nouel | I150: Bonao | J150: Bonao
D151: OZAMA O METROPOLITANA | E151: Santo Domingo | F151: Santo Domingo Este | G151: CIBAO SUR | H151: Monseñor Nouel | I151: Bonao | J151: Jayaco
D152: OZAMA O METROPOLITANA | E152: Santo Domingo | F152: Santo Domingo Oeste | G152: CIBAO SUR | H152: Monseñor Nouel | I152: Bonao | J152: Juma Bejucal
D153: OZAMA O METROPOLITANA | E153: Santo Domingo | F153: Santo Domingo Norte | G153: CIBAO SUR | H153: Monseñor Nouel | I153: Bonao | J153: La Salvia- Los Quemados
D154: OZAMA O METROPOLITANA | E154: Santo Domingo | F154: Boca Chica | G154: CIBAO SUR | H154: Monseñor Nouel | I154: Bonao | J154: Sabana del Puerto
D155: OZAMA O METROPOLITANA | E155: Santo Domingo | F155: Guerra | G155: CIBAO SUR | H155: Monseñor Nouel | I155: Maimón | J155: Maimón
D156: OZAMA O METROPOLITANA | E156: Santo Domingo | F156: Los Alcarrizos | G156: CIBAO SUR | H156: Monseñor Nouel | I156: Piedra Blanca | J156: Juan Adrián
D157: OZAMA O METROPOLITANA | E157: Santo Domingo | F157: Pedro Brand | G157: CIBAO SUR | H157: Monseñor Nouel | I157: Piedra Blanca | J157: Piedra Blanca
G158: CIBAO SUR | H158: Monseñor Nouel | I158: Piedra Blanca | J158: Villa de Sonador
G159: CIBAO SUR | H159: Sánchez Ramírez | I159: Cevicos | J159: Cevicos
G160: CIBAO SUR | H160: Sánchez Ramírez | I160: Cevicos | J160: La Cueva
G161: CIBAO SUR | H161: Sánchez Ramírez | I161: Cotuí | J161: Caballero
G162: CIBAO SUR | H162: Sánchez Ramírez | I162: Cotuí | J162: Comedero Arriba
G163: CIBAO SUR | H163: Sánchez Ramírez | I163: Cotuí | J163: Cotuí
G164: CIBAO SUR | H164: Sánchez Ramírez | I164: Cotuí | J164: Platanal
G165: CIBAO SUR | H165: Sánchez Ramírez | I165: Cotuí | J165: Quita Sueño
G166: CIBAO SUR | H166: Sánchez Ramírez | I166: Fantino | J166: Fantino
G167: CIBAO SUR | H167: Sánchez Ramírez | I167: La Mata | J167: Angelina
G168: CIBAO SUR | H168: Sánchez Ramírez | I168: La Mata | J168: Hernando Alonso
G169: CIBAO SUR | H169: Sánchez Ramírez | I169: La Mata | J169: La Bija
G170: CIBAO SUR | H170: Sánchez Ramírez | I170: La Mata | J170: La Mata
G171: EL VALLE | H171: Elías Piña | I171: Bánica | J171: Bánica
G172: EL VALLE | H172: Elías Piña | I172: Bánica | J172: Sabana Cruz
G173: EL VALLE | H173: Elías Piña | I173: Bánica | J173: Sabana Higüero
G174: EL VALLE | H174: Elías Piña | I174: Comendador | J174: Comendador
G175: EL VALLE | H175: Elías Piña | I175: Comendador | J175: Guayabo
G176: EL VALLE | H176: Elías Piña | I176: Comendador | J176: Sabana Larga
G177: EL VALLE | H177: Elías Piña | I177: El Llano | J177: El Llano
G178: EL VALLE | H178: Elías Piña | I178: El Llano | J178: Guanito
G179: EL VALLE | H179: Elías Piña | I179: Hondo Valle | J179: Hondo Valle
G180: EL VALLE | H180: Elías Piña | I180: Hondo Valle | J180: Rancho de la Guardia
G181: EL VALLE | H181: Elías Piña | I181: Juan Santiago | J181: Juan Santiago
G182: EL VALLE | H182: Elías Piña | I182: Pedro Santana | J182: Pedro Santana
G183: EL VALLE | H183: Elías Piña | I183: Pedro Santana | J183: Río Limpio
G184: EL VALLE | H184: San Juan | I184: Bohechio | J184: Arroyo Cano
G185: EL VALLE | H185: San Juan | I185: Bohechio | J185: Bohechio
G186: EL VALLE | H186: San Juan | I186: Bohechio | J186: El Yaque
G187: EL VALLE | H187: San Juan | I187: El Cercado | J187: Batista
G188: EL VALLE | H188: San Juan | I188: El Cercado | J188: El Cercado
G189: EL VALLE | H189: San Juan | I189: El Cercado | J189: Nuevo Brasil
G190: EL VALLE | H190: San Juan | I190: Juan de Herrera | J190: Jínova
G191: EL VALLE | H191: San Juan | I191: Juan de Herrera | J191: Juan de Herrera
G192: EL VALLE | H192: San Juan | I192: Las Matas de Farfán | J192: Carrera de Yeguas
G193: EL VALLE | H193: San Juan | I193: Las Matas de Farfán | J193: Las Matas de Farfán
G194: EL VALLE | H194: San Juan | I194: Las Matas de Farfán | J194: Matayaya
G195: EL VALLE | H195: San Juan | I195: San Juan de la Maguana | J195: El Rosario
G196: EL VALLE | H196: San Juan | I196: San Juan de la Maguana | J196: Guanito
G197: EL VALLE | H197: San Juan | I197: San Juan de la Maguana | J197: Hato del Padre
G198: EL VALLE | H198: San Juan | I198: San Juan de la Maguana | J198: La Jagua
G199: EL VALLE | H199: San Juan | I199: San Juan de la Maguana | J199: Las Charcas de María Nova
G200: EL VALLE | H200: San Juan | I200: San Juan de la Maguana | J200: Las Maguanas, Hato Nuevo
... 187 more rows

Sheet UNSPSC
A1: 10101501 | B1: Gatos
A2: 10101502 | B2: Perros
A3: 10101504 | B3: Visón
A4: 10101505 | B4: Ratas
A5: 10101506 | B5: Caballos
A6: 10101507 | B6: Ovejas
A7: 10101508 | B7: Cabras
A8: 10101509 | B8: Asnos
A9: 10101510 | B9: Ratones
A10: 10101511 | B10: Cerdos
A11: 10101512 | B11: Conejos
A12: 10101513 | B12: Cobayas o conejillos de indias
A13: 10101514 | B13: Primates
A14: 10101515 | B14: Armadillos
A15: 10101516 | B15: Ganado vacuno
A16: 10101517 | B16: Camellos
A17: 10101601 | B17: Pollos vivos
A18: 10101602 | B18: Patos vivos
A19: 10101603 | B19: Pavos vivos
A20: 10101604 | B20: Gansos vivos
A21: 10101605 | B21: Faisanes vivos
A22: 10101701 | B22: Salmón vivos
A23: 10101702 | B23: Trucha viva
A24: 10101703 | B24: Tilapia viva
A25: 10101704 | B25: Carpa viva
A26: 10101705 | B26: Anguilas vivas
A27: 10101801 | B27: Camarón vivo
A28: 10101802 | B28: Almejas vivas
A29: 10101803 | B29: Mejillones vivos
A30: 10101804 | B30: Ostras vivas
A31: 10101805 | B31: Cangrejos vivos
A32: 10101806 | B32: Abulones vivos
A33: 10101807 | B33: Pulpo vivo
A34: 10101808 | B34: Calamar vivo
A35: 10101901 | B35: Mariposas
A36: 10101902 | B36: Escarabajos
A37: 10101903 | B37: Abejas
A38: 10101904 | B38: Gusanos de seda
A39: 10102001 | B39: Elefantes
A40: 10102002 | B40: Zorros vivos
A41: 10111301 | B41: Juguetes para mascotas
A42: 10111302 | B42: Productos para el aseo y cuidado de mascotas
A43: 10111303 | B43: Equipo para el manejo de desperdicios de las mascotas
A44: 10111304 | B44: Tazones o equipo para alimentación de mascotas
A45: 10111305 | B45: Tratamientos medicados para mascotas
A46: 10111306 | B46: Kits para el entrenamiento de mascotas domésticas
A47: 10111307 | B47: Cobijas para mascotas
A48: 10121501 | B48: Salvado de trigo puro
A49: 10121502 | B49: Avena para forraje
A50: 10121503 | B50: Maíz para forraje
A51: 10121504 | B51: Sorgo para forraje
A52: 10121505 | B52: Heno
A53: 10121506 | B53: Tortas oleaginosas
A54: 10121601 | B54: Alimento vivo para aves
A55: 10121602 | B55: Alpiste
A56: 10121603 | B56: Pasa bocas o comida recreacional para aves
A57: 10121604 | B57: Alimento avícola
A58: 10121701 | B58: Salmuera fresca o congelada
A59: 10121702 | B59: Alimento granulado para peces
A60: 10121703 | B60: Alimento en hojuelas para peces
A61: 10121801 | B61: Comida seca para perros
A62: 10121802 | B62: Comida húmeda para perros
A63: 10121803 | B63: Leche para perros o gatos
A64: 10121804 | B64: Comida seca para gatos
A65: 10121805 | B65: Comida húmeda para gatos
A66: 10121806 | B66: Pasa bocas o comida recreacional para gatos o perros
A67: 10121901 | B67: Comida granulada para roedores
A68: 10122001 | B68: Comida granulada para reptiles
A69: 10122002 | B69: Comida húmeda para reptiles
A70: 10122003 | B70: Comida viva para reptiles
A71: 10122101 | B71: Comida para cerdos
A72: 10122102 | B72: Comida para visones
A73: 10122103 | B73: Comida para monos
A74: 10131506 | B74: Establos para ganado
A75: 10131507 | B75: Casas para mascotas domesticadas
A76: 10131508 | B76: Camas para mascotas
A77: 10131601 | B77: Jaulas o sus accesorios
A78: 10131602 | B78: Perreras
A79: 10131603 | B79: Equipaje para el transporte de animales
A80: 10131604 | B80: Correas para perros
A81: 10131701 | B81: Terrarios
A82: 10131702 | B82: Acuarios
A83: 10141501 | B83: Sillas de montar
A84: 10141502 | B84: Fustas y látigos
A85: 10141503 | B85: Herraduras para caballo
A86: 10141504 | B86: Herraduras para mula
A87: 10141601 | B87: Bridas
A88: 10141602 | B88: Yugos
A89: 10141603 | B89: Bocados para caballos
A90: 10141604 | B90: Riendas
A91: 10141605 | B91: Estribos
A92: 10141606 | B92: Correas o traíllas
A93: 10141607 | B93: Arneses de cuello para animales
A94: 10141608 | B94: Arneses o sus accesorios
A95: 10141609 | B95: Sujetadores
A96: 10141610 | B96: Bozales
A97: 10141611 | B97: Soportes para correas
A98: 10151501 | B98: Semillas o plántulas de fríjol
A99: 10151502 | B99: Semillas o plántulas de zanahoria
A100: 10151503 | B100: Semillas o plántulas de apio
A101: 10151504 | B101: Semillas o plántulas de chiles
A102: 10151505 | B102: Semillas o plántulas de calabacín
A103: 10151506 | B103: Semillas o plántulas de alverja
A104: 10151507 | B104: Semillas o plántulas de pepino cohombro
A105: 10151508 | B105: Semillas o plántulas de berenjena
A106: 10151509 | B106: Semillas o plántulas de endivias
A107: 10151510 | B107: Semillas o plántulas de ajo
A108: 10151511 | B108: Semillas o plántulas de puerro
A109: 10151512 | B109: Semillas o plántulas de lechuga
A110: 10151513 | B110: Semillas o plántulas de maíz
A111: 10151514 | B111: Semillas o plántulas de melón
A112: 10151515 | B112: Semillas o plántulas cebolla
A113: 10151516 | B113: Semillas o plántulas de soya
A114: 10151517 | B114: Semillas o plántulas de espinaca
A115: 10151518 | B115: Semillas o plántulas de tomate
A116: 10151519 | B116: Semillas o plántulas de nabo
A117: 10151520 | B117: Semillas o plántulas de acelga
A118: 10151521 | B118: Semillas o plántulas de pimiento morrón
A119: 10151522 | B119: Semillas o plántulas de remolacha
A120: 10151523 | B120: Semillas o plántulas de coliflor
A121: 10151524 | B121: Semillas o plántulas de perejil
A122: 10151525 | B122: Semillas o plántulas de brócoli
A123: 10151526 | B123: Semillas o plántulas de repollo
A124: 10151527 | B124: Semillas o plántulas de papa
A125: 10151528 | B125: Semillas o plántulas de batata
A126: 10151529 | B126: Semillas o plántulas de calabaza
A127: 10151530 | B127: Semillas o plántulas de rábano
A128: 10151531 | B128: Semillas o plántulas de repollitos de bruselas
A129: 10151532 | B129: Semillas o plántulas de ahuyama
A130: 10151533 | B130: Semillas o plántulas de okra
A131: 10151534 | B131: Semillas o plántulas de melón cantalupo
A132: 10151535 | B132: Semillas o plántulas de maní
A133: 10151601 | B133: Semillas de trigo
A134: 10151602 | B134: Semillas de canola
A135: 10151603 | B135: Semillas de cebada
A136: 10151604 | B136: Semillas de mijo
A137: 10151605 | B137: Semillas de avena
A138: 10151606 | B138: Semillas de ajonjolí
A139: 10151607 | B139: Semillas de linaza
A140: 10151608 | B140: Semillas de aceite de ricino
A141: 10151609 | B141: Semillas de maíz
A142: 10151610 | B142: Semillas de centeno
A143: 10151611 | B143: Semillas de sorgo
A144: 10151701 | B144: Semillas o plántulas de arroz
A145: 10151702 | B145: Semillas o plántulas de trébol
A146: 10151703 | B146: Semillas o plántulas de alfalfa
A147: 10151704 | B147: Semillas o plántulas de pasto
A148: 10151705 | B148: Semillas o plántulas de veza (gachas / guija)
A149: 10151706 | B149: Semillas o plántulas de guar
A150: 10151801 | B150: Semillas o plántulas de pimienta
A151: 10151802 | B151: Semillas o plántulas de vainilla
A152: 10151803 | B152: Semillas o plántulas de canela
A153: 10151804 | B153: Semillas o plántulas de clavo de olor
A154: 10151805 | B154: Semillas o plántulas de cilantro
A155: 10151806 | B155: Semillas o plántulas de jengibre
A156: 10151807 | B156: Semillas o plántulas de azafrán
A157: 10151808 | B157: Semillas o plántulas de tomillo
A158: 10151809 | B158: Semillas o plántulas de curry
A159: 10151810 | B159: Semillas o plántulas de mostaza
A160: 10151811 | B160: Semillas o plántulas de ginseng
A161: 10151901 | B161: Semillas, bulbos, plántulas o esquejes de tulipán
A162: 10151902 | B162: Semillas, plántulas o esquejes de rosa
A163: 10151903 | B163: Semillas, bulbos, plántulas o esquejes de narciso
A164: 10151904 | B164: Semillas de girasol
A165: 10151905 | B165: Bulbos o tallos de jacinto
A166: 10151906 | B166: Bulbos de lirio
A167: 10151907 | B167: Semillas o plántulas de veza
A168: 10152001 | B168: Semillas o esquejes de árboles frutales
A169: 10152002 | B169: Semillas o esquejes de coníferas
A170: 10152003 | B170: Semillas o esquejes de árboles de frutos secos
A171: 10152101 | B171: Extracción de los residuos de semilla de babool
A172: 10152102 | B172: Residuos de semilla de colza
A173: 10152103 | B173: Residuo de semillas de linaza
A174: 10152104 | B174: Torta de neem
A175: 10152201 | B175: Semillas o plántulas de algodón
A176: 10152202 | B176: Semillas o plántulas de lino
A177: 10161501 | B177: Aceitunos
A178: 10161502 | B178: Cafetos
A179: 10161503 | B179: Cacaoteros
A180: 10161504 | B180: Manzanos
A181: 10161505 | B181: Peros
A182: 10161506 | B182: Naranjos
A183: 10161507 | B183: Rododendros
A184: 10161508 | B184: Plantas de te
A185: 10161509 | B185: Coníferas
A186: 10161510 | B186: Abetos rojos (píceas)
A187: 10161511 | B187: Pinos
A188: 10161512 | B188: Abetos
A189: 10161513 | B189: Palmeras
A190: 10161601 | B190: Rosales
A191: 10161602 | B191: Poinsettias
A192: 10161603 | B192: Orquídeas
A193: 10161604 | B193: Azaleas
A194: 10161605 | B194: Cactos
A195: 10161701 | B195: Gladiolos cortados
A196: 10161702 | B196: Azucenas cortadas
A197: 10161703 | B197: Claveles cortados
A198: 10161704 | B198: Tulipanes cortados
A199: 10161705 | B199: Rosas cortadas
A200: 10161707 | B200: Arreglo de flores cortadas
... 18098 more rows

Sheet ProcedureTemplate (hidden)
A1: NOMBRE O REFERENCIA DE CONTRATACIÓN | B1: FINALIDAD DE LA CONTRATACIÓN | C1: OBJETO DE CONTRATACIÓN | D1: PROCEDIMIENTO DE SELECCIÓN | E1: DESTINADO A MIPYMES | F1: CÓDIGO SNIP
A3: FECHA DE NECESSIDAD | B3: FECHA INICIO PROCESO DE COMPRA | D3: LUGAR DE EJECUCIÓN / ENTREGA | E3: Región
B4: TRIMESTRE | C4: =IF(C3="","",IF(AND(MONTH(C3)>=1,MONTH(C3)<=3),1,IF(AND(MONTH(C3)>=4,MONTH(C3)<=6),2,IF(AND(MONTH(C3)>=7,MONTH(C3)<=9),3,4)))) ->  | E4: Provincia
B5: FECHA PREVISTA ADJUDICACIÓN | E5: Municipio
B6: TRIMESTRE | C6: =IF(C5="","",IF(AND(MONTH(C5)>=1,MONTH(C5)<=3),1,IF(AND(MONTH(C5)>=4,MONTH(C5)<=6),2,IF(AND(MONTH(C5)>=7,MONTH(C5)<=9),3,4)))) ->  | E6: Distrito Municipal
A8: CÓDIGO CATÁLOGO | B8: ARTÍCULO | C8: UNIDAD DE MEDIDA | D8: CANTIDAD TOTAL ESTIMADA | E8: PRECIO UNITARIO ESTIMADO | F8: MONTO TOTAL ESTIMADO
B9: =IFERROR(INDEX(UNSPSCDes,MATCH(INDIRECT(ADDRESS(ROW(),COLUMN()-1,4)),UNSPSCCode,0)),"") ->  | F9: =INDIRECT(ADDRESS(ROW(),COLUMN()-2,4))*INDIRECT(ADDRESS(ROW(),COLUMN()-1,4)) -> 0
E10: TOTAL COMPRA ESTIMADA | F10: =SUM(Table3[MONTO TOTAL ESTIMADO]) -> 0 | H10: =C2 -> 0 | I10: =E2 -> 0 | J10: =D2 -> 0
